Cogmind - Beta 16.1 @@@ ROGUE MODE // 2026.04.02 @ 21:45:36 Player: AngelSpirit Result: Establishing 0b11! Performance ------------- Evolutions (9) 4500 Regions Visited (32) 6400 Robots Destroyed (644) 3220 Value Destroyed (32409) 32409 Prototype IDs (386) 7720 Alien Tech Used (0) 0 Bonus (49121) 49121 TOTAL SCORE: 103370 Bonus ------- High Alert Combat Kills 9539 Follower Combat Kills 2159 Hunted by Unchained 1500 Entered Garrisons 1000 Network Hubs Disabled 600 Aligned with FarCom 300 Acquired ECA 300 Met Warlord at Base 500 MAIN.C Attacked Warlord 500 Warlord Defense Kills 908 Met R17 at Cetus 500 Met R17 at Research 2000 Met Warlord at Research 2000 Invited to Help at Command 2000 Destroyed MAIN.C Guards 500 Met MAIN.C 5000 Destroyed MAIN.C Shell 5000 Destroyed MAIN.C 10000 Met Warlord at Command 2000 Win 3000 Friendly Fire -185 Cogmind --------- Core Integrity 660/1600 Matter 290/300 Energy 346/380 System Corruption 0% Temperature Cool (12) Movement Hovering (42) Location 0b11 Command Parts ------- > --- POWER (2) -------- Zero-point Reactor Zero-point Reactor > --- PROPULSION (7) --- Cooled Antigrav System Combat Antigrav System Combat Linear Gravjet Combat Linear Gravjet Combat Linear Gravjet Combat Linear Gravjet Combat Linear Gravjet > --- UTILITY (13) ----- Coolant Network Experimental Coolant Injector Large Storage Unit Experimental Optical Array Experimental Targeting Computer Experimental Core Analyzer Advanced Particle Accelerator Advanced Weapon Cycler Experimental Reaction Control System Centrium Heavy Armor Plating Graphene Brace > --- WEAPON (3) ------- Heavy Quantum Rifle Heavy Quantum Rifle Heavy Quantum Rifle > --- INVENTORY (15) --- Improved Quantum Reactor Improved Quantum Reactor Cooled Antigrav System Combat Linear Gravjet Superbattery (1500) Improved Matter Compressor (300) Advanced Quantum Shading Machine Advanced Kinecellerator Advanced Phase Shifter Thermal Barrier Heavy Quantum Rifle Vortex Driver (29) Omega Cannon Peak State ------------ > --- POWER ------------ Reinforced Quantum Reactor Zero-point Reactor > --- PROPULSION ------- Enhanced Biometal Leg Enhanced Biometal Leg Enhanced Biometal Leg Heavy Shield Leg High-density Centrium Leg Experimental Biometal Leg > --- UTILITY ---------- Experimental Cooling System Coolant Network High-capacity Storage Unit Experimental Optical Array Experimental Targeting Computer Experimental Core Analyzer Advanced Particle Accelerator Advanced Weapon Cycler Experimental Reaction Control System Centrium Heavy Armor Plating Improved Corruption Screen > --- WEAPON ----------- Heavy Quantum Rifle Heavy Quantum Rifle Heavy Quantum Rifle > --- INVENTORY -------- Reinforced Quantum Reactor Reinforced Quantum Reactor Heavy Shield Leg Advanced Cooling System Experimental Coolant Injector Superbattery Improved Matter Compressor Experimental Terrain Scanner Advanced Terrain Scan Processor Advanced Phase Shifter Graphene Brace Thermal Barrier Advanced Force Field Heavy Quantum Rifle HERF Cannon Vortex Driver [Rating: 240] Favorites ----------- Power Light Quantum Reactor Engine F-cell Engine Power Core Micro Nuclear Core Reactor Light Quantum Reactor Propulsion Cooled Aerolev Unit Treads Light Treads Leg Enhanced Biometal Leg Wheel Wheel Hover Unit Cooled Aerolev Unit Flight Unit Cooled VTOL Module Utility Large Storage Unit Device Weapon Mount Storage Large Storage Unit Processor Core Analyzer Hackware Advanced Hacking Suite Protection Improved Medium Armor Plating Weapon Shock Maul Energy Gun Heavy Quantum Rifle Energy Cannon Enhanced Nova Cannon Ballistic Gun Advanced KE Penetrator Ballistic Cannon Hypervelocity Mass Driver Launcher Long-range Missile Launcher Special Weapon Mining Laser Impact Weapon Shock Maul Piercing Weapon Plasma Lance Build | -11 -10 -10 -10 -9 -8 -8 -8 -7 -7 -7 -7 -6 -6 -6 -6 -5 -5 -5 -5 -5 -5 -4 -4 -4 -4 -4 -4 -4 -3 -2 -1 -1 ------- Run | Yrd Mat Min Exi Min Mat Gar Mat Fac Gar Fac Gar Fac Was Fac Gar Fac Was Fac Upp Upp War Pro Fac Ext Cet Arc Hub Gar Res Res Acc Com Slots Evolved 18 | . . . . . 4 . . 2 . . . 2 . . . 2 . . . . . . 2 . . . . . 2 2 2 . Power 1 | . . . . . . . . . . . . . . . . . . . . . . . 1 . . . . . . . . . Propulsion 5 | . . . . . 1 . . 2 . . . . . . . 1 . . . . . . 1 . . . . . . . . . Utility 11 | . . . . . 3 . . . . . . 2 . . . 1 . . . . . . . . . . . . 1 2 2 . Weapon 1 | . . . . . . . . . . . . . . . . . . . . . . . . . . . . . 1 . . . Parts Attached 434 | 7 9 2 . 1 20 15 13 27 9 4 7 25 2 6 7 13 4 10 6 2 13 . 16 6 1 9 5 20 51 18 4 102 Power 56 | 1 1 1 . 1 1 1 2 1 4 2 1 2 . . 4 1 . 2 . . 1 . 2 2 . . 1 4 5 . . 16 Engine 10 | 1 . 1 . 1 1 . 1 . . 1 . 1 . . 1 . . 1 . . 1 . . . . . . . . . . . Core 16 | . 1 . . . . 1 1 1 4 1 1 1 . . 3 . . 1 . . . . . 1 . . . . . . . . Reactor 30 | . . . . . . . . . . . . . . . . 1 . . . . . . 2 1 . . 1 4 5 . . 16 Propulsion 96 | 2 2 1 . . 5 8 2 9 . . 1 9 . . 2 . 2 2 2 1 3 . 3 . 1 1 2 3 10 2 1 22 Treads 3 | . . . . . . 3 . . . . . . . . . . . . . . . . . . . . . . . . . . Leg 9 | . . . . . . 2 . . . . . . . . . . . . . . . . . . . . . . . . . 7 Wheel 9 | 2 2 1 . . 4 . . . . . . . . . . . . . . . . . . . . . . . . . . . Hover 56 | . . . . . . . . 2 . . . 5 . . 2 . 1 2 2 1 3 . 3 . 1 1 2 3 10 2 1 15 Flight 19 | . . . . . 1 3 2 7 . . 1 4 . . . . 1 . . . . . . . . . . . . . . . Utility 183 | 2 3 . . . 9 4 6 10 . 2 2 10 2 3 1 8 2 5 4 1 7 . 5 3 . 5 2 4 24 14 2 43 Device 86 | 1 . . . . 3 1 3 2 . . . 2 2 1 . 4 2 2 4 . 4 . 4 . . 4 1 2 14 5 . 25 Storage 12 | 1 2 . . . . . . 2 . 1 . . . . . 1 . . . . . . . . . . . . 2 1 . 2 Processor 31 | . . . . . . 1 2 2 . . 1 3 . . . . . 1 . . 1 . . . . . . . 4 5 . 11 Hackware 20 | . . . . . 2 . . 4 . 1 1 2 . . . 2 . 2 . . . . 1 . . . 1 . 1 1 2 . Protection 34 | . 1 . . . 4 2 1 . . . . 3 . 2 1 1 . . . 1 2 . . 3 . 1 . 2 3 2 . 5 Artifact . | . . . . . . . . . . . . . . . . . . . . . . . . . . . . . . . . . Weapon 99 | 2 3 . . . 5 2 3 7 5 . 3 4 . 3 . 4 . 1 . . 2 . 6 1 . 3 . 9 12 2 1 21 Energy Gun 12 | . . . . . . . 1 2 . . . . . 1 . . . . . . . . . . . . . 1 . . . 7 Energy Cannon 9 | . . . . . . . . . . . . . . . . . . 1 . . 1 . . . . . . 1 1 . . 5 Ballistic Gun 41 | 2 2 . . . 3 2 1 2 4 . 2 1 . . . . . . . . . . . . . 3 . 6 8 2 . 3 Ballistic Cannon 16 | . . . . . . . . 1 . . . . . 2 . 2 . . . . . . 3 . . . . 1 3 . 1 3 Launcher 10 | . . . . . 2 . 1 1 1 . 1 . . . . 1 . . . . . . 2 . . . . . . . . 1 Special Weapon 4 | . 1 . . . . . . . . . . . . . . 1 . . . . 1 . . 1 . . . . . . . . Impact Weapon 5 | . . . . . . . . 1 . . . 3 . . . . . . . . . . 1 . . . . . . . . . Slashing Weapon . | . . . . . . . . . . . . . . . . . . . . . . . . . . . . . . . . . Piercing Weapon 2 | . . . . . . . . . . . . . . . . . . . . . . . . . . . . . . . . 2 Special Melee Weapon . | . . . . . . . . . . . . . . . . . . . . . . . . . . . . . . . . . Unidentified Prototypes 65 | . . . . . 5 . 2 6 . 1 . 6 1 2 . 3 3 2 . . 7 . 6 1 . 1 . 2 11 5 . 1 Parts Lost 98 | . 2 1 . . 3 19 3 . 1 . 4 1 . 1 5 . . . 1 3 . . 1 1 . 1 9 3 8 . . 31 Power 15 | . . 1 . . . 2 . . 1 . 1 . . . 1 . . . . . . . . . . . 2 . 1 . . 6 Propulsion 36 | . 2 . . . 1 7 1 . . . 1 . . . 2 . . . 1 2 . . 1 1 . 1 4 1 4 . . 7 Utility 25 | . . . . . 2 7 . . . . . 1 . . 1 . . . . 1 . . . . . . 2 1 . . . 10 Weapon 22 | . . . . . . 3 2 . . . 2 . . 1 1 . . . . . . . . . . . 1 1 3 . . 8 Highest Loss Streak 11 | . 1 1 . . 1 6 1 . 1 . 2 1 . 1 1 . . . 1 1 . . 1 1 . 1 8 2 7 . . 11 To Critical Strikes 2 | . 1 . . . . . . . . . . . . . . . . . . . . . . . . . . . . . . 1 Average Backups 12 | . 6 13 14 15 13 11 4 7 9 10 8 9 10 9 9 11 14 14 13 12 13 13 13 14 14 12 13 13 13 13 12 13 Power 1 | . 1 . 3 4 2 2 . . . . . . . . . 1 2 1 1 1 1 1 1 1 1 1 . . . . . 1 Propulsion 2 | . 2 2 3 3 4 6 3 2 4 4 4 4 3 2 1 2 3 2 2 1 . 2 2 3 3 3 2 . 1 2 3 2 Utility 4 | . 2 5 5 5 3 1 1 2 2 2 1 2 4 4 4 4 6 6 5 6 7 7 6 6 5 5 6 5 6 4 4 5 Weapon 3 | . 1 4 3 3 4 2 . 2 3 4 2 2 2 2 2 2 2 2 3 3 3 3 3 2 3 2 3 6 5 5 5 3 Tool/Special . | . . . . . . . . . . . . . . . . . . . . . . . . . . . . . . . . . Unused Backups 75 | . 2 . 3 . 12 1 1 . . . 1 1 2 2 . 1 . 4 . . 2 . 4 1 1 . . 2 7 . . 28 Power 17 | . . . . . 5 1 1 . . . 1 . . . . . . 1 . . 1 . . 1 1 . . 1 1 . . 3 Propulsion 16 | . . . . . 2 . . . . . . . 1 1 . . . 1 . . . . . . . . . . 2 . . 9 Utility 25 | . 1 . 1 . 3 . . . . . . 1 1 1 . 1 . 2 . . 1 . 1 . . . . 1 1 . . 10 Weapon 17 | . 1 . 2 . 2 . . . . . . . . . . . . . . . . . 3 . . . . . 3 . . 6 Tool/Special . | . . . . . . . . . . . . . . . . . . . . . . . . . . . . . . . . . Average Slot Usage (%) 93 | . 99 99 100 100 95 74 82 98 99 99 99 95 100 100 99 95 99 99 100 94 97 100 95 91 92 89 91 87 94 90 91 86 Engine 2 | . 12 9 14 14 9 2 5 2 . . . . . . . . . 3 5 5 5 5 5 5 5 5 3 . . . . . Core 2 | . 1 3 . . . 6 3 4 6 6 6 6 6 6 5 4 5 1 . . . . . 2 . . . . . . . . Reactor 3 | . . . . . . . . . . . . . . . . . . . . . . . 3 2 5 5 5 8 8 8 8 7 Leg 2 | . . . . . . 9 . . . . . . . . . . . . . . . . . . . . . . . . . 10 Wheel 2 | . 27 28 28 28 26 3 . . . . . . . . . . . . . . . . . . . . . . . . . . Hover 19 | . . . . . . . . . . . . 5 33 33 32 34 34 35 35 34 34 35 34 33 34 33 33 27 30 26 24 14 Flight 5 | . . . . . . . 27 37 38 38 37 26 . . . . . . . . . . . . . . . . . . . . Device 11 | . 12 13 14 14 11 4 12 3 . . . 2 6 6 6 4 14 10 17 13 16 17 10 10 11 11 12 13 13 14 12 19 Storage 5 | . 14 14 14 14 9 9 . 4 7 7 7 6 6 6 6 5 5 5 5 5 5 5 5 5 5 5 5 5 4 4 4 4 Processor 11 | . . . . . . . 12 4 7 7 14 13 13 13 13 11 11 12 11 11 11 11 10 10 10 10 10 10 11 15 16 19 Hackware 8 | . . . . . 9 2 . 22 23 23 15 19 13 13 13 13 11 12 11 5 5 5 9 10 8 5 5 7 6 4 11 1 Protection 3 | . 1 . . . 11 13 4 1 . . . 3 6 5 5 4 2 2 . 4 5 5 5 5 5 2 3 1 3 3 4 2 Ballistic Gun 6 | . 27 28 28 28 17 13 6 2 12 11 11 3 6 1 . . . . . . . . . . . 8 10 7 12 12 8 2 Ballistic Cannon 1 | . . . . . . . . 3 . . . . . 4 5 4 5 4 4 4 4 5 4 4 5 . . . . . 2 . Impact Weapon 2 | . . . . . . . . 5 1 3 3 5 6 6 6 4 5 4 5 5 4 5 3 . . . . . . . . . Peak Build Rating 240 | 7 10 10 10 11 32 32 35 56 56 58 59 81 85 84 86 94 102 107 106 104 116 116 147 147 142 141 136 145 172 200 213 240 Average Rating 110 | 5 7 8 9 10 26 21 30 48 54 55 56 69 80 82 82 87 98 100 104 95 106 115 132 137 139 122 127 121 158 192 210 201 On Entrance 84 | . 7 10 9 10 11 31 19 33 56 55 55 56 81 81 84 79 89 95 101 104 89 116 116 147 136 141 131 112 145 171 197 210 Avg Prop Armor Cover (%) 2 | . . . . . . 4 . 2 . . . . . . . . . . . . . . . 1 . . 5 . 1 . . 1 Naked Turns . | . . . . . . . . . . . . . . . . . . . . . . . . . . . . . . . . . Heaviest Build 169 | 15 30 30 30 32 47 49 18 28 28 27 27 33 33 43 45 52 57 58 57 62 71 66 80 78 80 82 82 77 96 99 103 169 Greatest Support 210 | 26 26 26 20 20 30 60 15 28 28 27 27 45 45 45 45 55 58 84 62 63 71 71 108 90 92 92 93 99 99 106 106 210 Greatest Overweight (x) 4 | . 1 1 1 1 2 4 1 1 . . 1 1 . . 1 4 1 1 . . 1 . . . . . . 1 1 . . 1 Average Overweight (x) . | . . 1 1 1 1 1 . . . . . . . . . . . . . . . . . . . . . . . . . . Largest Inventory Capacity 20 | 8 15 15 15 15 15 15 15 10 10 10 10 10 10 10 10 15 15 15 15 15 15 15 15 15 15 15 15 15 15 15 15 20 Average Capacity 14 | 6 12 15 15 15 15 15 5 8 10 10 10 10 10 10 10 14 15 15 15 15 15 15 15 15 15 15 15 15 15 15 15 17 Most Carried 20 | 1 14 14 15 15 15 14 7 10 10 10 10 10 10 10 10 15 15 15 15 15 15 15 15 15 15 15 15 15 15 15 14 20 Average Carried 12 | . 6 13 14 15 13 11 4 7 9 9 8 9 9 9 9 11 14 14 14 14 14 14 14 14 14 12 13 13 14 14 13 15 Final Capacity 15 | 8 15 15 15 15 15 15 5 10 10 10 10 10 10 10 10 15 15 15 15 15 15 15 15 15 15 15 15 15 15 15 15 15 Final Carried 15 | 1 12 14 15 15 14 8 5 10 10 10 10 10 10 10 10 15 14 15 14 14 15 14 14 15 14 15 15 15 15 15 14 14 Class Distribution -------------------- 26% | Hacker-Sprinter 14% | Scavenger-Mutant 12% | Scavenger-Gunner 11% | Hacker-Mutant 6% | Mutant 6% | Hacker-Scout 4% | Trapper-Sprinter 4% | Trapper-Mutant 3% | Hacker-Gunner 3% | Scavenger-Scout Dominant Class ---------------- Mutant | -10/Materials Mutant | -10/Mines Mutant | -10/Exiles Mutant | -9/Mines Scavenger-Mutant | -8/Materials Scavenger-Mutant | -8/Garrison Sprinter | -8/Materials Hacker-Sprinter | -7/Factory Hacker-Sprinter | -7/Garrison Hacker-Sprinter | -7/Factory Hacker-Sprinter | -7/Garrison Hacker-Sprinter | -6/Factory Hacker-Mutant | -6/Waste Hacker-Mutant | -6/Factory Hacker-Mutant | -6/Garrison Hacker-Sprinter | -5/Factory Hacker-Sprinter | -5/Waste Hacker-Sprinter | -5/Factory Hacker-Sprinter | -5/Upper Caves Trapper-Sprinter | -5/Upper Caves Trapper-Mutant | -5/Warlord Trapper-Mutant | -4/Proximity Caves Hacker-Sprinter | -4/Factory Hacker-Sprinter | -4/Extension Hacker-Sprinter | -4/Cetus Scavenger-Sprinter | -4/Archives Scavenger-Sprinter | -4/Hub_04(d) Scavenger-Mutant | -4/Garrison Hacker-Gunner | -3/Research Hacker-Scout | -2/Research Hacker-Scout | -1/Access Scavenger-Gunner | -1/Command Resources | -11 -10 -10 -10 -9 -8 -8 -8 -7 -7 -7 -7 -6 -6 -6 -6 -5 -5 -5 -5 -5 -5 -4 -4 -4 -4 -4 -4 -4 -3 -2 -1 -1 ----------- Run | Yrd Mat Min Exi Min Mat Gar Mat Fac Gar Fac Gar Fac Was Fac Gar Fac Was Fac Upp Upp War Pro Fac Ext Cet Arc Hub Gar Res Res Acc Com Matter Collected 24753 | 202 472 183 . 10 976 811 398 856 1451 96 1478 515 30 747 1446 711 524 625 282 749 416 150 1186 786 166 579 214 1529 2330 514 439 3882 Remotely . | . . . . . . . . . . . . . . . . . . . . . . . . . . . . . . . . . Salvage Created 32188 | 10 603 184 . . 1360 1023 417 1167 1171 137 1938 1103 . 1416 2123 2358 1485 1510 241 1019 389 168 1860 1489 126 648 785 1379 2847 351 338 2543 Parts 1363 | 2 41 13 . . 82 51 29 33 68 10 100 25 . 63 123 48 15 47 14 33 13 11 64 45 2 40 27 80 151 12 15 106 Haulers Intercepted 53 | . 2 . . . 3 . 2 7 . 3 . 7 . 4 . 5 . 7 . . . . 4 . . . 1 . 5 3 . . Recyclers Shooed 5 | . 1 . . . . . 1 . . . . . . . . 1 . . . . . . . 2 . . . . . . . . Parts Field Recycled . | . . . . . . . . . . . . . . . . . . . . . . . . . . . . . . . . . Retrieved Matter . | . . . . . . . . . . . . . . . . . . . . . . . . . . . . . . . . . Parts Self-Destructed 64 | . . . . . . . . . . . . . . . . . . . 10 42 . 12 . . . . . . . . . . Prevented 8 | . . . . . . . . . . . . . . . . . . . 7 1 . . . . . . . . . . . . Parts Restored 1 | . . . . . . . . . . . . . . . . . . . . . . . . . . . . . 1 . . . Broken 1 | . . . . . . . . . . . . . . . . . . . . . . . . . . . . . 1 . . . Kills | -11 -10 -10 -10 -9 -8 -8 -8 -7 -7 -7 -7 -6 -6 -6 -6 -5 -5 -5 -5 -5 -5 -4 -4 -4 -4 -4 -4 -4 -3 -2 -1 -1 ------- Run | Yrd Mat Min Exi Min Mat Gar Mat Fac Gar Fac Gar Fac Was Fac Gar Fac Was Fac Upp Upp War Pro Fac Ext Cet Arc Hub Gar Res Res Acc Com Combat Hostiles Destroyed 449 | . 10 5 . . 23 23 9 10 26 . 32 5 . 18 51 17 6 15 5 20 7 6 21 22 3 4 7 30 31 5 7 31 Melee 3 | . . . . . . . . . 1 . . . . . . . . . . 1 . . . . . 1 . . . . . . Guns 152 | . 10 5 . . 16 9 5 6 14 . 20 2 . . . . . . . . . . . . . 2 2 16 20 . 1 24 Cannons 152 | . . . . . . . . . . . . . . 15 37 9 6 8 2 15 7 2 14 21 3 1 . . 8 . . 4 AOE 127 | . . . . . 7 13 4 3 11 . 12 1 . 3 11 7 . 5 3 4 . 4 5 . . . 4 13 3 5 6 3 Classes Destroyed 25 | 1 7 . . . 3 4 . . . . . . . . 3 . 1 1 1 . 1 . 1 1 . . . . 1 . . . Worker 24 | . 1 1 . . 1 . 1 . . . . 1 . 1 . 4 . 4 . . . . 3 2 . . 4 . . . . 1 Builder 12 | . 1 . . . 4 . . 1 . . . 1 . 1 . 3 . . . . . . . 1 . . . . . . . . Tunneler 7 | 1 . . . . . . . . . . . . . 1 . 1 . 2 . . . . 1 1 . . . . . . . . Hauler 53 | . 2 . . . 3 . 2 7 . 3 . 7 . 4 . 5 . 7 . . . . 4 . . . 1 . 5 3 . . Recycler 19 | . . . . . 1 . 1 2 . . . 1 . . . 7 . . . . . . 1 2 . . . . . . 1 3 Minesweeper 3 | . . . . . . . . . . . . . . . . . . . 2 1 . . . . . . . . . . . . Mechanic 4 | . . . . . . . . . . . . . . . . . . 1 . 1 1 . . . . . . . 1 . . . Operator 23 | . 2 . . . 1 . 1 1 . . . . . 1 1 2 . . . . . . 2 2 . 9 . . . . . 1 Turret 12 | . . . . . . . . . . . . . . . . . . . . . . . 12 . . . . . . . . . Watcher 36 | . 2 . . . 3 . . 5 . . 3 2 . 3 . 2 . 5 . . . . 5 1 1 . . . 1 . 2 1 Swarmer 120 | . 3 2 . . 7 7 6 . 12 . 12 1 . 3 12 5 . 5 3 5 . 4 5 . . . . 13 4 5 6 . Cutter 4 | . . . . . . . . . . . . . . . 4 . . . . . . . . . . . . . . . . . Grunt 138 | . 7 3 . . 12 5 . 7 7 . 12 2 . 8 10 7 . 2 1 4 6 1 5 6 . . 4 7 14 . . 8 Brawler 12 | . . . . . . 1 . . . . 2 1 . 1 . . . . . 2 . . . 2 . . . 1 1 . . 1 Duelist 14 | . . . . . . 1 . 1 . . . . . 1 3 . . . . 6 . . . 1 . . . . 1 . . . Protector 2 | . . . . . . . . . . . . . . . 1 . . . . . . . . 1 . . . . . . . . Sentry 69 | . . . . . 2 7 3 2 5 . 2 1 . 5 9 2 . 3 1 2 . . 3 7 . 4 2 4 4 . 1 . Demolisher 1 | . . . . . . . . . . . . . . . 1 . . . . . . . . . . . . . . . . . Specialist 3 | . . . . . 2 . . . . . 1 . . . . . . . . . . . . . . . . . . . . . Hunter 30 | . . . . . . 1 . . 2 . . . . . 7 3 . 1 . 1 . 1 2 2 . . 1 2 . . . 7 Programmer 39 | . . . . . . 1 . . . . 3 . . . 4 . . 4 . . . . 6 1 . . . 2 6 . . 12 Behemoth 3 | . . . . . . . . . . . . . . . . . . . . . . . . 2 . . . 1 . . . . Compactor 6 | . . . . . . . . . . . . . . . . . 6 . . . . . . . . . . . . . . . Cetus Guard 3 | . . . . . . . . . . . . . . . . . . . . . . . . . 3 . . . . . . . M Guard 1 | . . . . . . . . . . . . . . . . . . . . . . . . . . . . . . . . 1 Combat Programmer 2 | . . . . . . . . . . . . . . . . . . . . . . . . . . . . . . . . 2 Striker 1 | . . . . . . . . . . . . . . . . . . . . . . . . . . . . . 1 . . . Executioner 1 | . . . . . . . . . . . . . . . . . . . . . 1 . . . . . . . . . . . Decomposer 5 | . . . . . . . . . . . . . . . . . . . 3 2 . . . . . . . . . . . . Thug 1 | . . . . . . . . . . . 1 . . . . . . . . . . . . . . . . . . . . . Savage 1 | . . . . . . . . . . . . . . . . . . . . . . . . . . . 1 . . . . . Best Kill Streak 25 | 1 4 3 . . 10 4 6 4 5 1 6 5 . 6 25 6 2 8 4 5 4 5 10 10 3 6 7 5 13 5 7 11 Combat Bots Only 25 | . 3 3 . . 7 4 4 3 5 . 6 3 . 3 25 5 2 5 4 5 4 5 9 8 2 2 5 5 13 5 6 10 Max Kills in Single Turn 6 | 1 1 1 . . 3 3 2 1 4 1 3 2 . 2 4 5 1 4 2 2 1 3 3 3 1 1 6 4 3 4 4 2 Gunslinging 1 | . . . . . . . . . . . . . . . . . . . . . . . . . . . . . 1 . . 1 Exploded 5 | . . . . . 3 3 1 1 4 . 3 1 . 2 4 5 . 4 2 2 . 3 3 . . . 4 4 3 4 4 2 Melee 1 | . . . . . . . . . 1 . . . . . . . . . . 1 . . . . . 1 . . . . . . Uniques/NPCs Destroyed . | . . . . . . . . . . . . . . . . . . . . . . . . . . . . . . . . . Combat | -11 -10 -10 -10 -9 -8 -8 -8 -7 -7 -7 -7 -6 -6 -6 -6 -5 -5 -5 -5 -5 -5 -4 -4 -4 -4 -4 -4 -4 -3 -2 -1 -1 -------- Run | Yrd Mat Min Exi Min Mat Gar Mat Fac Gar Fac Gar Fac Was Fac Gar Fac Was Fac Upp Upp War Pro Fac Ext Cet Arc Hub Gar Res Res Acc Com Hostile Shots Fired 1851 | . 44 7 . 2 136 173 31 17 114 . 124 20 . 4 139 16 . 48 15 25 8 7 146 57 7 8 113 78 145 17 9 341 Missed 758 | . 12 . . . 45 52 7 7 55 . 63 7 . . 53 3 . 24 8 10 3 3 72 31 2 4 59 29 52 9 3 145 Hits 1093 | . 32 7 . 2 91 121 24 10 59 . 61 13 . 4 86 13 . 24 7 15 5 4 74 26 5 4 54 49 93 8 6 196 Melee 8 | . . . . . . 6 . . . . . . . . 1 . . . . . . . . 1 . . . . . . . . Projectile 1085 | . 32 7 . 2 91 115 24 10 59 . 61 13 . 4 85 13 . 24 7 15 5 4 74 25 5 4 54 49 93 8 6 196 AOE 24 | . . . . . . . . . . . . . . . 4 . . . . . 1 . . 2 . . . . . 1 . 16 Critical Strikes 78 | . 2 1 . . 8 11 . . 2 . 2 . . . 2 . . 1 . . . . 6 1 1 . 3 2 9 2 . 25 Part Disruptions 6 | . . . . . . . . . . . . . . . . . . . . . . . 1 1 . . . . . . . 4 Damage Taken 23392 | . 375 106 . 32 1229 2075 337 298 560 26 801 177 . 77 1387 230 . 541 121 237 92 53 1433 603 157 76 1150 943 2480 338 151 7307 Core 3086 | . 113 15 . . 177 293 79 107 191 . 158 60 . 19 204 75 . 44 36 . . . 122 50 . . 94 148 161 . . 940 Absorbed by Shields 925 | . . . . . 140 . . . . . 109 . . . . 6 . 37 6 . 34 7 83 193 36 27 210 . 32 . . 5 Redirected to Shielding 9 | . . . . . . . 9 . . . . . . . . . . . . . . . . . . . . . . . . . Ignored by Resistances 92 | . . . . . 54 16 . . . . . . . . . . . 22 . . . . . . . . . . . . . . Regen/Repaired (Parts) 1446 | . . . . . 82 . . . . . . 124 . 186 . . 386 235 . . 146 . . 287 . . . . . . . . Core Remaining (%) 62 | 100 . . . 48 . . . . . . 34 . . . 66 . . . . . . 84 . . . . . 64 87 100 . 41 Volleys Fired 1722 | 1 54 13 . . 111 100 58 40 100 . 108 12 . 41 150 29 49 36 12 82 22 13 105 76 18 57 23 101 109 26 25 151 Largest 3 | 2 2 2 . . 2 2 1 2 2 . 2 2 . 1 1 1 1 1 1 1 1 1 1 1 1 2 2 2 3 3 3 3 Hottest 360 | 40 100 40 . . 100 100 100 66 66 . 66 66 . 56 56 56 56 56 56 56 56 56 60 60 60 70 70 75 120 105 105 360 Shots Fired 2549 | 2 107 26 . . 201 152 59 67 188 1 176 23 . 41 150 29 49 36 12 82 22 12 100 73 19 84 46 174 231 38 38 311 Gun 1685 | 2 106 26 . . 188 105 41 58 176 1 161 22 . 1 . . . . . . . . . . . 80 46 167 211 36 22 236 Cannon 699 | . . . . . . . . 4 . . . . . 38 143 26 49 31 9 78 22 10 93 73 19 4 . . 19 . 14 67 Launcher 120 | . . . . . 10 15 10 5 12 . 15 1 . 2 7 2 . 5 3 4 . 2 7 . . . . 7 1 2 2 8 Special 45 | . 1 . . . 3 32 8 . . . . . . . . 1 . . . . . . . . . . . . . . . . Kinetic 2285 | 2 106 26 . . 188 105 31 62 176 1 161 22 . 39 143 26 49 31 9 78 22 10 93 73 19 84 46 143 226 36 36 242 Thermal 107 | . 1 . . . 3 32 18 . . . . . . . . . . . . . . . . . . . . 24 4 . . 25 Explosive 86 | . . . . . . . 3 5 12 . 15 1 . 2 7 2 . 5 3 4 . 2 5 . . . . 7 1 2 2 8 Electromagnetic 69 | . . . . . 10 15 7 . . . . . . . . . . . . . . . 2 . . . . . . . . 35 Entropic 1 | . . . . . . . . . . . . . . . . . . . . . . . . . . . . . . . . 1 Robot Hit Streak 43 | 2 8 5 . . 13 10 6 7 19 3 17 7 . 11 19 15 10 22 6 18 14 7 11 13 12 5 7 14 43 15 3 17 Robot Miss Streak 11 | . 6 2 . . 10 4 6 2 9 . 3 1 . 2 3 4 3 2 2 2 1 2 5 5 3 11 2 2 4 1 1 5 Penetration Max 2 | . . . . . . . . 2 1 . 2 2 . 1 2 1 1 1 . 1 1 1 1 . . 1 . 1 1 . . 1 Secondary Targets 14 | . 1 1 . . 2 1 . . 1 . 2 . . . . . . . . . . . . . . . . . 4 . . 2 Max Gunslinging Chain 1 | . 1 1 . . 1 1 . . 1 . 1 . . . . . . . . . . . . . . . . . 1 . . 1 Shots Hit Robots 1686 | 2 65 17 . . 103 85 28 56 86 4 109 37 . 49 90 42 40 57 12 69 21 7 85 70 17 43 27 103 161 17 5 179 Core Hits 1002 | 1 31 11 . . 56 34 21 31 57 2 88 14 . 26 63 29 8 19 8 36 13 11 55 60 14 28 25 49 85 10 14 103 Critical Kills 204 | . . . . . . . . 5 13 1 21 5 . 16 29 12 6 12 1 9 7 2 11 . . 3 . 13 27 1 . 10 Critical Parts Destroyed 266 | . . . . . 1 1 . 15 17 . 21 12 . 16 36 20 3 13 3 21 4 4 19 1 . . . 14 31 2 1 11 Critical Strikes 531 | . . . . . 1 1 3 20 31 1 42 17 . 33 67 32 30 25 4 34 12 6 36 8 1 3 . 29 58 3 2 32 Burn 4 | . . . . . . . 3 . . . . . . . . . . . . . . . . . . . . 1 . . . . Destroy 444 | . . . . . 1 1 . 17 29 . 42 6 . 25 67 19 30 17 1 32 12 6 23 . . 2 . 28 58 3 2 23 Blast 14 | . . . . . . . . . . . . . . . . . . . . . . . 3 7 1 . . . . . . 3 Corrupt 6 | . . . . . . . . . . . . . . . . . . . . . . . . . . . . . . . . 6 Smash 63 | . . . . . . . . 3 2 1 . 11 . 8 . 13 . 8 3 2 . . 10 1 . 1 . . . . . . Melee Attacks 406 | . . . . . . . . 45 43 7 55 42 . 30 16 43 . 55 5 12 . . 48 4 . 1 . . . . . . Impact 406 | . . . . . . . . 45 43 7 55 42 . 30 16 43 . 55 5 12 . . 48 4 . 1 . . . . . . Slashing . | . . . . . . . . . . . . . . . . . . . . . . . . . . . . . . . . . Piercing . | . . . . . . . . . . . . . . . . . . . . . . . . . . . . . . . . . Sneak Attacks 83 | . . . . . . . . 10 . 2 5 9 . 7 . 14 . 14 5 4 . . 12 1 . . . . . . . . Combat Hostiles 3 | . . . . . . . . . . . . . . . . . . 1 . . . . 2 . . . . . . . . . Follow-up Attacks . | . . . . . . . . . . . . . . . . . . . . . . . . . . . . . . . . . Damage Inflicted 65547 | 28 877 240 . . 2452 1839 1102 1956 2457 163 3141 1845 . 2350 3017 3552 856 3886 852 2154 446 517 6023 4924 1416 1473 2233 2579 3152 1342 1384 7291 Guns 17833 | 28 877 240 . . 1749 1146 495 387 590 6 797 163 . 6 . . . . . . . . . . . 1215 899 1024 2394 510 321 4986 Cannons 17278 | . . . . . . . . . . . . . . 637 2032 354 856 553 107 1132 446 162 2864 4683 1416 192 . . 430 . 171 1243 Explosions 16117 | . . . . . 703 693 607 355 855 . 1935 168 . 367 862 909 . 598 172 526 . 355 1009 . . . 1334 1555 328 832 892 1062 Melee 14319 | . . . . . . . . 1214 1012 157 409 1514 . 1340 123 2289 . 2735 573 496 . . 2150 241 . 66 . . . . . . Ramming . | . . . . . . . . . . . . . . . . . . . . . . . . . . . . . . . . . Kinetic 34424 | 28 877 240 . . 1749 1146 398 387 590 6 797 163 . 643 2032 354 856 553 107 1132 446 162 2864 4683 1416 1407 899 881 2824 510 492 5782 Thermal 596 | . . . . . 143 113 97 . . . . . . . . . . . . . . . . . . . . 143 . . . 100 Explosive 12866 | . . . . . . . 260 333 855 . 1935 168 . 367 862 909 . 598 172 526 . 355 877 . . . . 1555 328 832 892 1042 Electromagnetic 3342 | . . . . . 560 580 347 22 . . . . . . . . . . . . . . 132 . . . 1334 . . . . 367 Impact 14319 | . . . . . . . . 1214 1012 157 409 1514 . 1340 123 2289 . 2735 573 496 . . 2150 241 . 66 . . . . . . Slashing . | . . . . . . . . . . . . . . . . . . . . . . . . . . . . . . . . . Piercing . | . . . . . . . . . . . . . . . . . . . . . . . . . . . . . . . . . Highest Corruption 31 | . . . . . 1 13 13 1 . 1 5 . . . 2 1 1 7 . . . . 14 19 19 19 4 5 8 . . 31 Average Corruption 8 | . . . . . 1 7 13 1 . 1 4 . . . 1 1 1 3 . . . . 7 18 19 12 3 4 5 . . 19 Corruption Purged 76 | . . . . . . . . 1 . . . . . . . . 1 10 . . . . . . . 19 . . 8 . . 37 Corruption Blocked 25 | . . . . . . . . . . . . . . . . . . . . . . . . . . . . . 7 . . 18 Effects 394 | . . . . . 6 40 21 1 . 1 32 . . . 3 . 3 28 . . . . 29 53 13 21 1 33 21 . . 88 Message Errors 81 | . . . . . . 8 5 . . . 5 . . . . . 2 7 . . . . 5 14 1 3 . 9 4 . . 18 Matter Fused 79 | . . . . . 2 3 8 1 . . 15 . . . 1 . . 6 . . . . 4 12 1 1 . 4 4 . . 17 Heat Flow Errors 53 | . . . . . 1 4 4 . . . 4 . . . . . 1 7 . . . . 3 5 4 2 1 5 4 . . 8 Energy Discharges 36 | . . . . . 1 8 1 . . . 1 . . . 1 . . 3 . . . . . 6 1 2 . 3 2 . . 7 Parts Rejected 10 | . . . . . . 1 . . . . 1 . . . . . . 1 . . . . 1 1 1 . . 1 . . . 3 Parts Fused 4 | . . . . . 1 1 . . . . 1 . . . . . . 1 . . . . . . . . . . . . . . Data Loss (minor) 39 | . . . . . 1 7 2 . . . 1 . . . 1 . . 1 . . . . 4 2 . 5 . 3 4 . . 8 Data Loss (major) 17 | . . . . . . 2 . . . . 1 . . . . . . 1 . . . . 1 3 1 1 . 3 1 . . 3 Misfires 18 | . . . . . . 3 1 . . 1 2 . . . . . . . . . . . 1 2 1 1 . 1 . . . 5 Alerts 5 | . . . . . . . . . . . 1 . . . . . . 1 . . . . 2 1 . . . . . . . . Misdirections 21 | . . . . . . 1 . . . . . . . . . . . . . . . . 4 2 3 1 . . . . . 10 Weapon Failures 31 | . . . . . . 2 . . . . . . . . . . . . . . . . 4 5 . 5 . 4 2 . . 9 Overload Shots 8 | . . . . . . . . . . . . . . . . . . . . . . . . . . . . 5 3 . . . Effects 1 | . . . . . . . . . . . . . . . . . . . . . . . . . . . . . 1 . . . Energy Bleed 1 | . . . . . . . . . . . . . . . . . . . . . . . . . . . . . 1 . . . Overflow Damage 8719 | . . . . . 7 32 19 438 163 17 326 543 . 767 92 1652 . 1156 395 317 . . 1864 301 . . 94 367 41 31 77 20 Projectiles 242 | . . . . . . . . . . . . . . . 3 . . . . 5 . . 117 70 . . . . . . 27 20 Explosions 1012 | . . . . . 7 32 19 . 42 . 195 . . . 26 4 . 58 . 30 . . 16 . . . 94 367 41 31 50 . Melee 7465 | . . . . . . . . 438 121 17 131 543 . 767 63 1648 . 1098 395 282 . . 1731 231 . . . . . . . . Knockbacks 90 | . . . . . . . . 2 . . . 2 . 4 6 8 . 12 1 8 . . 21 9 1 . . . 5 . 2 9 Impact 25 | . . . . . . . . 2 . . . 2 . 4 . 6 . 5 1 1 . . 3 1 . . . . . . . . Kinetic 63 | . . . . . . . . . . . . . . . 5 2 . 7 . 7 . . 17 8 1 . . . 5 . 2 9 Secondary 2 | . . . . . . . . . . . . . . . 1 . . . . . . . 1 . . . . . . . . . Self-Inflicted Damage 752 | . . . . . 146 140 80 . 61 . 12 40 . . 81 . . . . . . . . . . . 192 . . . . . Shots 23 | . . . . . 6 6 3 . 2 . 1 1 . . 2 . . . . . . . . . . . 2 . . . . . Rammed . | . . . . . . . . . . . . . . . . . . . . . . . . . . . . . . . . . Targets Rammed . | . . . . . . . . . . . . . . . . . . . . . . . . . . . . . . . . . Kicked . | . . . . . . . . . . . . . . . . . . . . . . . . . . . . . . . . . Crushed . | . . . . . . . . . . . . . . . . . . . . . . . . . . . . . . . . . Highest Temperature 695 | . 21 15 . . 265 245 268 26 97 33 154 11 . 22 94 10 97 239 23 11 12 3 283 280 328 167 268 283 243 6 . 695 Average Temperature 45 | . 7 5 . . 65 40 65 4 13 2 18 5 . 6 16 4 46 74 15 4 7 2 70 69 108 38 111 89 38 4 . 66 Received Heat Transfer 3925 | . 198 81 . 9 513 450 54 66 147 . 221 69 . 18 193 24 . 36 . 21 6 . 181 68 12 . 133 108 172 . . 1145 Effects 13 | . . . . . . . . . . . . . . . . . . . . . . . . . . . 2 . . . . 11 Shutdowns 2 | . . . . . . . . . . . . . . . . . . . . . . . . . . . . . . . . 2 Energy Bleed 3 | . . . . . . . . . . . . . . . . . . . . . . . . . . . 1 . . . . 2 Interference 1 | . . . . . . . . . . . . . . . . . . . . . . . . . . . 1 . . . . . Short Circuit 2 | . . . . . . . . . . . . . . . . . . . . . . . . . . . . . . . . 2 Damage (major) 4 | . . . . . . . . . . . . . . . . . . . . . . . . . . . . . . . . 4 Damage (core) 1 | . . . . . . . . . . . . . . . . . . . . . . . . . . . . . . . . 1 Siege Activations . | . . . . . . . . . . . . . . . . . . . . . . . . . . . . . . . . . Martial Activations . | . . . . . . . . . . . . . . . . . . . . . . . . . . . . . . . . . Shielding Activations . | . . . . . . . . . . . . . . . . . . . . . . . . . . . . . . . . . Robots Disrupted 1 | . . . . . 1 . . . . . . . . . . . . . . . . . . . . . . . . . . . Combat Hostiles 1 | . . . . . 1 . . . . . . . . . . . . . . . . . . . . . . . . . . . Robots Corrupted 63 | . . . . . . 1 . 12 1 . 3 8 . 5 2 9 . 11 1 1 . . 7 1 . . 1 . . . . . Combat Hostiles 13 | . . . . . . 1 . 1 . . . 2 . . 2 1 . 2 . . . . 2 1 . . 1 . . . . . Parts Fried 107 | . . . . . 1 . 2 12 . 1 4 8 . 11 4 21 . 12 1 3 . . 15 4 . . 6 1 . . . 1 Impact Corruptions 184 | . . . . . . . . 19 3 1 5 16 . 19 3 42 . 27 16 8 . . 23 2 . . . . . . . . Robots Melted 1 | . . . . . . . 1 . . . . . . . . . . . . . . . . . . . . . . . . . Combat Hostiles . | . . . . . . . . . . . . . . . . . . . . . . . . . . . . . . . . . Parts Melted 3 | . . 1 . . . . . . . . . . . . . . . . . . . . . . . . . 2 . . . . Heat Transferred 1169 | . . . . . 200 150 407 . . . . . . . . . . . . . . . . . . . . 350 . . . 62 Parts Sabotaged . | . . . . . . . . . . . . . . . . . . . . . . . . . . . . . . . . . Parts Stolen . | . . . . . . . . . . . . . . . . . . . . . . . . . . . . . . . . . Parts Stripped . | . . . . . . . . . . . . . . . . . . . . . . . . . . . . . . . . . Power Chain Reactions 11 | . . . . . 7 2 1 . . . . . . . . . . . . . . . . . . . . . . . . 1 Alert | -11 -10 -10 -10 -9 -8 -8 -8 -7 -7 -7 -7 -6 -6 -6 -6 -5 -5 -5 -5 -5 -5 -4 -4 -4 -4 -4 -4 -4 -3 -2 -1 -1 ------- Run | Yrd Mat Min Exi Min Mat Gar Mat Fac Gar Fac Gar Fac Was Fac Gar Fac Was Fac Upp Upp War Pro Fac Ext Cet Arc Hub Gar Res Res Acc Com Maximum Alert Level 5 | . . . . . 2 4 3 1 5 3 5 4 1 2 5 4 2 3 . . . . 2 4 3 1 3 5 4 3 3 4 Low Security (%) 18 | 100 100 100 . 100 60 . . 65 . . . . . 78 . . . 14 . . . . 76 1 . . 61 . . . . . Level 1 10 | . . . . . 36 2 . 34 15 . . . 100 14 2 . 89 2 . . . . 20 47 . 100 . . . . . . Level 2 9 | . . . . . 2 19 97 . 14 . 5 . . 7 16 . 10 18 . . . . 2 5 . . 20 8 . 24 80 4 Level 3 23 | . . . . . . 73 2 . 26 100 22 81 . . 13 15 . 64 . . . . . 20 100 . 18 27 40 75 19 6 Level 4 31 | . . . . . . 4 . . 30 . 20 18 . . 14 84 . . . . . . . 23 . . . 36 59 . . 88 Level 5 6 | . . . . . . . . . 13 . 51 . . . 52 . . . . . . . . . . . . 28 . . . . High Security . | . . . . . . . . . . . . . . . . . . . . . . . . . . . . . . . . . Max Security . | . . . . . . . . . . . . . . . . . . . . . . . . . . . . . . . . . Peak Influence 2441 | 5 67 130 . . 408 1107 731 341 1700 892 2441 1292 331 484 2182 1222 419 988 . . . . 406 1448 832 398 1024 1865 1450 876 717 1238 Initial 1281 | . . 14 . . . 261 520 327 224 892 613 1281 331 189 334 1145 419 160 . . . . 30 196 800 300 94 468 1048 812 501 422 Average 749 | . 33 39 . . 168 826 562 194 973 863 1595 1006 304 198 1437 1133 325 738 . . . . 114 647 760 351 390 1318 1183 762 626 998 Influence Increases 24165 | 5 397 200 . . 746 996 485 579 1526 105 1928 508 . 747 2018 925 . 1544 195 740 209 167 1187 1950 290 231 1225 1447 1368 519 299 1629 Destroy 0b10 Robot/C 10120 | . 200 140 . . 460 460 180 200 560 20 780 140 . 360 1080 340 . 660 100 400 140 140 440 840 160 80 160 600 620 100 140 620 Destroy 0b10 Robot/NC 975 | 5 40 10 . . 65 5 25 80 10 15 35 60 . 55 10 120 . 105 10 10 5 . 80 55 10 45 25 . 35 15 15 30 Destroy Leader 1478 | . 48 30 . . 92 20 54 62 20 16 80 58 . 104 50 74 . 154 10 30 . 20 96 94 . . 42 40 112 16 24 132 Allied During Kill 1159 | . . 20 . . . . . . 8 3 66 2 . . 48 . . 168 . . 4 7 2 706 106 14 5 . . . . . Trap Triggered on 0b10 190 | . . . . . . . . . . . . . . . 30 . . . . . . . 80 . . . . 80 . . . . Successful Hack 984 | . 18 . . . 28 14 9 103 20 33 22 71 . 28 4 28 . 75 . . . . 82 25 . . 18 52 225 70 . 59 Select Force Hacks 140 | . 30 . . . . . . . . . . . . . . . . . . . . . . . . . 50 . 60 . . . Disable Machine 915 | . . . . . 45 30 . 30 75 . 45 . . 30 60 60 . 30 . . . . 60 60 . 30 210 60 . . 15 75 Anti-Garrison Action 1850 | . . . . . . 300 . . 400 . 400 . . . 500 . . . . . . . . . . . . 200 . . . 50 Destroy Structure 2814 | . 1 . . . 26 137 37 44 238 3 260 27 . 20 176 68 . 142 . . . . 152 110 14 62 480 145 126 138 75 333 Partial Spotted 645 | . . . . . . . 60 30 45 15 15 60 . 15 . 15 . 135 . . . . 150 . . . 45 . 30 15 . 15 Lose Combat Pursuer 2595 | . 60 . . . 30 30 120 30 150 . 225 90 . 135 60 120 . 75 75 300 60 . 45 60 . . 90 270 60 165 30 315 Miscellaneous 300 | . . . . . . . . . . . . . . . . 100 . . . . . . . . . . 100 . 100 . . . Influence Decreases 22938 | 5 360 237 . . 344 331 831 980 146 928 364 2002 676 540 314 1909 969 819 610 585 903 118 834 922 970 710 827 251 1789 1126 476 1062 Entered New Map 11017 | . . 23 . . . 141 547 394 96 808 264 1160 616 82 144 1037 779 69 354 103 694 . 19 206 630 450 177 201 817 632 336 238 Time Decay 7785 | 5 340 204 . . 314 . 254 416 . 120 . 342 60 428 . 422 190 550 246 452 209 118 489 446 100 230 110 . 592 494 140 514 Lost Part 980 | . 20 10 . . 30 190 30 . 10 . 40 10 . 10 50 . . . 10 30 . . 10 10 . 10 90 30 80 . . 310 Lost Ally 1090 | . . . . . . . . 20 40 . 60 40 . 20 120 . . 200 . . . . 50 260 240 20 . 20 . . . . Purge Threat 2066 | . . . . . . . . 150 . . . 450 . . . 450 . . . . . . 266 . . . 450 . 300 . . . Squads Dispatched 129 | . 3 . . . 6 . 4 10 . 1 . 11 . 6 . 14 . 21 . 1 . . 12 4 . . 4 . 16 3 2 11 Investigation 56 | . 2 . . . 2 . 1 4 . . . 5 . 3 . 7 . 9 . . . . 6 1 . . 2 . 10 2 1 1 Extermination 27 | . . . . . . . . 3 . 1 . 2 . 3 . 3 . 5 . . . . 4 . . . . . 1 . . 5 Reinforcement 32 | . 1 . . . 3 . 3 1 . . . 3 . . . 2 . 3 . . . . 2 2 . . 2 . 5 1 1 3 Assault 7 | . . . . . . . . . . . . . . . . 2 . 1 . 1 . . . 1 . . . . . . . 2 Garrison 7 | . . . . . 1 . . 2 . . . 1 . . . . . 3 . . . . . . . . . . . . . . Intercept . | . . . . . . . . . . . . . . . . . . . . . . . . . . . . . . . . . Searches Triggered . | . . . . . . . . . . . . . . . . . . . . . . . . . . . . . . . . . Unchained Authorized 2 | . . . . . . . . . . . . . . . . . . . . . . . 1 . . . . . . . 1 . Construction Impeded 5 | . . . . . 1 . 2 . . . . 1 . . . . . 1 . . . . . . . . . . . . . . Haulers Reinforced 12 | . . . . . . . . . . . . 2 . . . 2 . 2 . . . . . . . . 1 . 4 1 . . Active Scanning Responses . | . . . . . . . . . . . . . . . . . . . . . . . . . . . . . . . . . Cargo Convoy Interrupts 1 | . . . . . . . . . . . . . . . . . . . . . . . 1 . . . . . . . . . Stealth | -11 -10 -10 -10 -9 -8 -8 -8 -7 -7 -7 -7 -6 -6 -6 -6 -5 -5 -5 -5 -5 -5 -4 -4 -4 -4 -4 -4 -4 -3 -2 -1 -1 --------- Run | Yrd Mat Min Exi Min Mat Gar Mat Fac Gar Fac Gar Fac Was Fac Gar Fac Was Fac Upp Upp War Pro Fac Ext Cet Arc Hub Gar Res Res Acc Com Distress Signals 55 | . 3 . . . 2 . 1 . . . 1 . . . . 1 . . . . . . 6 4 2 . 2 . 7 2 2 22 Communications Jammed . | . . . . . . . . . . . . . . . . . . . . . . . . . . . . . . . . . Distress Signals . | . . . . . . . . . . . . . . . . . . . . . . . . . . . . . . . . . Times Spotted 853 | . 19 7 . 1 39 23 25 25 26 . 47 16 . 28 53 23 5 25 11 33 50 6 84 45 10 22 31 34 41 28 7 89 Peak Tracking Total 17 | . 4 3 . 2 7 6 5 4 5 . 8 4 . 6 10 7 3 8 5 10 7 4 12 8 5 2 17 6 8 7 4 9 Tactical Retreats 112 | . 3 . . . 2 2 4 2 7 . 10 4 . 4 2 3 . 2 3 7 1 . 20 3 . . 2 9 4 4 1 13 ECM-based Alert Blocks 37 | . . . . . . . . . . . . . . . . . . . . . . . 28 . . . . . . . . 9 Traps | -11 -10 -10 -10 -9 -8 -8 -8 -7 -7 -7 -7 -6 -6 -6 -6 -5 -5 -5 -5 -5 -5 -4 -4 -4 -4 -4 -4 -4 -3 -2 -1 -1 ------- Run | Yrd Mat Min Exi Min Mat Gar Mat Fac Gar Fac Gar Fac Was Fac Gar Fac Was Fac Upp Upp War Pro Fac Ext Cet Arc Hub Gar Res Res Acc Com Traps Triggered 78 | . 1 . . . 3 2 2 5 1 4 10 2 . . . 11 . 9 . . . . 4 5 . . 1 . 8 . . 10 Indirectly 4 | . . . . . . . 2 . . . . . . . . . . . . . . . 1 . . . 1 . . . . . Trap Hack Attempts . | . . . . . . . . . . . . . . . . . . . . . . . . . . . . . . . . . Triggered . | . . . . . . . . . . . . . . . . . . . . . . . . . . . . . . . . . Disarmed 2 | . . . . . . . 2 . . . . . . . . . . . . . . . . . . . . . . . . . Reprogrammed 24 | . . . . . . . . . . . . 3 . 5 . . . . . . . . 10 6 . . . . . . . . Reused 24 | . . . . . . . . . . . . . . . 3 . . . 2 3 . . 8 . . . . 8 . . . . Traps Extracted 5 | . . . . . . . . . . . . . . 5 . . . . . . . . . . . . . . . . . . Installed 20 | . . . . . . . . . . . . . . . 3 . . . 3 5 . . . . . . 1 8 . . . . Triggered 24 | . . . . . . . . . . . . . . . 3 . . . 2 3 . . 8 . . . . 8 . . . . Most Traps Carried 12 | . . . . . . . . . . . . . . 5 5 2 2 2 10 12 10 10 10 10 10 10 10 9 1 1 . . Machines | -11 -10 -10 -10 -9 -8 -8 -8 -7 -7 -7 -7 -6 -6 -6 -6 -5 -5 -5 -5 -5 -5 -4 -4 -4 -4 -4 -4 -4 -3 -2 -1 -1 ---------- Run | Yrd Mat Min Exi Min Mat Gar Mat Fac Gar Fac Gar Fac Was Fac Gar Fac Was Fac Upp Upp War Pro Fac Ext Cet Arc Hub Gar Res Res Acc Com Machines Disabled 98 | . . . . . 3 6 . 2 13 . 8 . . 2 13 4 . 2 . . 2 . 4 7 . 2 14 8 . . 1 7 Max in Single Turn 10 | . . . . . 1 1 . 1 3 . 1 . . 2 2 2 . 1 . . 1 . 1 1 . 1 10 2 . . 1 2 Garrison Access 15 | . . . . . . . . 2 . . . . . 1 . 1 . 1 . . . . 2 . . . . . 4 3 1 . Garrison Relay 23 | . . . . . . 4 . . 5 . 5 . . . 5 . . . . . . . . . . . . 4 . . . . Phase Generator 3 | . . . . . . . . . 1 . . . . . 1 . . . . . . . . . . . . . . . . 1 Network Hub 3 | . . . . . . . . . . . . . . . . . . . . . . . . . . . 3 . . . . . Energy Cycler 1 | . . . . . . . . . . . . . . . . . . . . . . . . . . . . . . . 1 . Machines Repaired . | . . . . . . . . . . . . . . . . . . . . . . . . . . . . . . . . . Machines Dismantled 2 | . . . . . . . . . . . . . . . . . . . . . 1 . . 1 . . . . . . . . Machines Sabotaged 1 | . . . . . . . . . . . . . . . . . . . . . . . . . . . 1 . . . . . Overloaded Fab Kills . | . . . . . . . . . . . . . . . . . . . . . . . . . . . . . . . . . Hacking | -11 -10 -10 -10 -9 -8 -8 -8 -7 -7 -7 -7 -6 -6 -6 -6 -5 -5 -5 -5 -5 -5 -4 -4 -4 -4 -4 -4 -4 -3 -2 -1 -1 --------- Run | Yrd Mat Min Exi Min Mat Gar Mat Fac Gar Fac Gar Fac Was Fac Gar Fac Was Fac Upp Upp War Pro Fac Ext Cet Arc Hub Gar Res Res Acc Com Machines Accessed 220 | . 7 . 2 . 10 2 5 25 3 5 3 19 . 17 3 18 . 25 1 . 3 . 21 13 1 . 5 2 18 6 2 4 Terminals 130 | . 5 . . . 7 2 5 15 3 3 3 11 . 9 3 11 . 12 . . . . 14 12 1 . 4 2 4 . 1 3 Fabricators 26 | . . . . . . . . 4 . . . 5 . 2 . 3 . 5 . . . . 2 . . . . . 4 1 . . Repair Stations 6 | . 1 . . . 1 . . . . . . 1 . 1 . . . 1 . . . . . 1 . . . . . . . . Recycling Units 16 | . 1 . . . . . . . . 1 . 1 . 1 . 2 . 2 . . . . 2 . . . . . 4 1 . 1 Scanalyzers 16 | . . . . . 1 . . 3 . . . 1 . 2 . 1 . 3 . . . . 1 . . . . . 3 1 . . Garrison Access 20 | . . . . . 1 . . 3 . 1 . . . 2 . 1 . 2 . . . . 2 . . . 1 . 3 3 1 . Total Hacks 704 | . 20 . 2 . 25 4 16 92 7 12 8 65 . 43 5 66 . 72 1 . 10 . 82 32 3 . 19 11 69 22 3 15 Successful 428 | . 7 . 2 . 15 1 7 59 3 7 3 45 . 30 3 41 . 39 1 . 10 . 58 18 3 . 8 5 44 9 2 8 Failed 271 | . 12 . . . 10 3 9 33 4 5 5 19 . 12 2 25 . 33 . . . . 23 14 . . 11 6 24 13 1 7 Catastrophic 36 | . . . . . 2 1 2 2 1 1 2 . . . . 4 . 1 . . . . 3 2 . . 4 1 5 5 . . Database Lockouts 5 | . 1 . . . . . . . . . . 1 . 1 . . . . . . . . 1 . . . . . 1 . . . Manual 305 | . 12 . 1 . 14 3 5 36 3 5 2 35 . 23 1 19 . 30 . . . . 47 15 . . 15 8 20 3 . 8 Terminals 444 | . 14 . . . 21 4 16 55 7 9 8 39 . 24 5 42 . 38 . . . . 65 30 3 . 18 11 25 . 1 9 Fabricators 102 | . . . . . . . . 18 . . . 19 . 8 . 13 . 17 . . . . 7 . . . . . 17 3 . . Repair Stations 16 | . 5 . . . 2 . . . . . . 3 . 2 . . . 2 . . . . . 2 . . . . . . . . Recycling Units 45 | . 1 . . . . . . . . 2 . 2 . 3 . 4 . 4 . . . . 6 . . . . . 11 6 . 6 Scanalyzers 47 | . . . . . 1 . . 12 . . . 2 . 4 . 4 . 7 . . . . 1 . . . . . 9 7 . . Garrison Access 37 | . . . . . 1 . . 7 . 1 . . . 2 . 3 . 4 . . . . 3 . . . 1 . 7 6 2 . Terminal Hacks 190 | . 4 . 2 . 7 1 5 21 3 2 3 17 . 8 2 18 . 13 1 . 10 . 28 15 3 . 6 5 11 . 1 4 Record 5 | . . . 1 . . . . . . . . . . . . . . . . . . . 1 . 3 . . . . . . . Part Schematic 7 | . 1 . . . . . . 3 . . . 2 . . . . . 1 . . . . . . . . . . . . . . Robot Analysis 5 | . 1 . . . 1 . . 2 . . . 1 . . . . . . . . . . . . . . . . . . . . Prototype ID Bank 11 | . . . . . 1 . . . . . . . . 1 . . . . . . 9 . . . . . . . . . . . Open Door 12 | . . . . . . . . . 1 . 1 . . . 1 . . . 1 . 1 . . 5 . . . 1 . . . 1 Level Access Points 1 | . . . . . . . . . . . . . . . . . . . . . . . 1 . . . . . . . . . Branch Access Points 7 | . . . . . 1 . . 1 . . . 1 . 1 . 1 . 1 . . . . 1 . . . . . . . . . Emergency Access Points 7 | . . . . . 1 1 . . 1 . 1 . . . . . . 1 . . . . 1 . . . . 1 . . . . Machine Index 4 | . . . . . . . . 1 . . . 1 . . . . . . . . . . 1 . . . . . 1 . . . Terminal Index 6 | . . . . . . . . . . . . . . 1 . 1 . 1 . . . . 1 . . . 1 . 1 . . . Fabricator Index 1 | . . . . . . . . . . . . . . . . . . . . . . . . . . . . . 1 . . . Scanalyzer Index 3 | . . . . . . . . . . 1 . . . . . 1 . . . . . . 1 . . . . . . . . . Alert Level 13 | . . . . . . . 1 1 . . . 2 . 1 . 2 . 1 . . . . 2 1 . . . . 1 . 1 . Unreport Threat 19 | . . . . . . . . 1 . . . 3 . . . 4 . . . . . . 4 . . . 4 . 3 . . . Locate Traps 27 | . 1 . . . . . 1 2 . 1 . 1 . 1 . 2 . 4 . . . . 6 4 . . . . 2 . . 2 Disarm Traps 1 | . . . . . . . 1 . . . . . . . . . . . . . . . . . . . . . . . . . Reprogram Traps 6 | . . . . . . . . . . . . 1 . 1 . . . . . . . . 3 1 . . . . . . . . Recall Investigation 15 | . . . . . 2 . . 3 . . . 1 . 1 . 2 . 3 . . . . 1 2 . . . . . . . . Recall Extermination 3 | . . . . . . . . 2 . . . . . . . 1 . . . . . . . . . . . . . . . . Recall Reinforcements 1 | . . . . . . . . . . . . . . . . . . . . . . . . 1 . . . . . . . . Hauler Manifests 9 | . . . . . . . 1 2 . . . 1 . 1 . 1 . . . . . . 2 . . . . . 1 . . . Registered Components 5 | . . . . . . . . 1 . . . . . . . 1 . 1 . . . . 1 . . . . . . . . 1 Registered Prototypes 3 | . . . . . . . . 1 . . . 1 . . . . . . . . . . . . . . . . 1 . . . Zone Layout 12 | . 1 . . . 1 . 1 1 . . . 2 . . . 2 . . . . . . 2 1 . . 1 . . . . . Garrison Registry 2 | . . . . . . . . . . . . . . . . . . . . . . . . . . . . 2 . . . . Patrol Navigation 2 | . . . . . . . . . 1 . . . . . 1 . . . . . . . . . . . . . . . . . Security Stations 2 | . . . . . . . . . . . 1 . . . . . . . . . . . . . . . . 1 . . . . Proto ID Catalog 1 | . . . 1 . . . . . . . . . . . . . . . . . . . . . . . . . . . . . Fabricator Hacks 47 | . . . . . . . . 8 . . . 7 . 5 . 8 . 6 . . . . 5 . . . . . 8 . . . Network Status 8 | . . . . . . . . 1 . . . 1 . 1 . 2 . 1 . . . . 1 . . . . . 1 . . . Load Schematic 21 | . . . . . . . . 3 . . . 4 . 2 . 3 . 3 . . . . 2 . . . . . 4 . . . Build 18 | . . . . . . . . 4 . . . 2 . 2 . 3 . 2 . . . . 2 . . . . . 3 . . . Repair Station Hacks 11 | . 1 . . . 2 . . . . . . 2 . 2 . . . 2 . . . . . 2 . . . . . . . . Scan Component 5 | . . . . . 1 . . . . . . 1 . 1 . . . 1 . . . . . 1 . . . . . . . . Repair 5 | . . . . . 1 . . . . . . 1 . 1 . . . 1 . . . . . 1 . . . . . . . . Refit 1 | . 1 . . . . . . . . . . . . . . . . . . . . . . . . . . . . . . . Recycling Unit Hacks 10 | . . . . . . . . . . 1 . . . . . 2 . 1 . . . . . . . . . . 4 1 . 1 Retrieve Components 10 | . . . . . . . . . . 1 . . . . . 2 . 1 . . . . . . . . . . 4 1 . 1 Scanalyzer 35 | . . . . . 1 . . 11 . . . 2 . 3 . 4 . 5 . . . . 1 . . . . . 5 3 . . Insert Component 9 | . . . . . . . . 2 . . . 1 . 1 . . . 3 . . . . . . . . . . 2 . . . Analyze 8 | . . . . . . . . 4 . . . 1 . 1 . . . 1 . . . . . . . . . . 1 . . . Retrieve Study 18 | . . . . . 1 . . 5 . . . . . 1 . 4 . 1 . . . . 1 . . . . . 2 3 . . Garrison Access Hacks 20 | . . . . . 1 . . 4 . 1 . . . 2 . 1 . 1 . . . . 2 . . . 1 . 3 3 1 . Unlock Access 6 | . . . . . 1 . . 2 . 1 . . . 1 . . . . . . . . . . . . 1 . . . . . Seal Access 14 | . . . . . . . . 2 . . . . . 1 . 1 . 1 . . . . 2 . . . . . 3 3 1 . Unauthorized Hacks 115 | . 2 . . . 4 . 2 15 . 3 . 17 . 10 1 8 . 11 . . . . 22 1 . . 1 . 13 2 . 3 Terminals 67 | . 1 . . . 4 . 2 8 . 2 . 10 . 5 1 5 . 7 . . . . 14 1 . . 1 . 5 . . 1 Track 2 | . . . . . . . . . . . . . . . . 1 . . . . . . 1 . . . . . . . . . Assimilate 10 | . . . . . . . . 2 . . . 3 . 3 . . . . . . . . 1 . . . . . . . . 1 Botnet 44 | . 1 . . . 3 . 2 6 . 2 . 7 . 2 . 4 . 7 . . . . 6 1 . . . . 3 . . . Operators 2 | . . . . . 1 . . . . . . . . . . . . . . . . . . . . . . . 1 . . . Skim 7 | . . . . . . . . . . . . . . . . . . . . . . . 6 . . . . . 1 . . . Sabotage 1 | . . . . . . . . . . . . . . . . . . . . . . . . . . . 1 . . . . . Override 1 | . . . . . . . . . . . . . . . 1 . . . . . . . . . . . . . . . . . Fabricators 26 | . . . . . . . . 7 . . . 6 . 3 . 2 . 2 . . . . 2 . . . . . 4 . . . Report 4 | . . . . . . . . 1 . . . 1 . 1 . . . . . . . . . . . . . . 1 . . . Prioritize 17 | . . . . . . . . 4 . . . 4 . 2 . 2 . 2 . . . . 1 . . . . . 2 . . . Liberate 1 | . . . . . . . . 1 . . . . . . . . . . . . . . . . . . . . . . . . Haulers 4 | . . . . . . . . 1 . . . 1 . . . . . . . . . . 1 . . . . . 1 . . . Repair Stations . | . . . . . . . . . . . . . . . . . . . . . . . . . . . . . . . . . Recycling Units 20 | . 1 . . . . . . . . 1 . 1 . 2 . 1 . 2 . . . . 6 . . . . . 2 2 . 2 Monitor 4 | . . . . . . . . . . . . . . . . . . . . . . . 2 . . . . . 1 1 . . Reject 4 | . . . . . . . . . . . . . . 1 . . . . . . . . 2 . . . . . . . . 1 Recyclers 9 | . . . . . . . . . . 1 . 1 . 1 . 1 . 2 . . . . 1 . . . . . 1 1 . . Mask 2 | . . . . . . . . . . . . . . . . . . . . . . . 1 . . . . . . . . 1 Tunnel 1 | . 1 . . . . . . . . . . . . . . . . . . . . . . . . . . . . . . . Scanalyzers 2 | . . . . . . . . . . . . . . . . . . . . . . . . . . . . . 2 . . . Extract 2 | . . . . . . . . . . . . . . . . . . . . . . . . . . . . . 2 . . . Garrison Access . | . . . . . . . . . . . . . . . . . . . . . . . . . . . . . . . . . Data Cores Recovered 8 | . 1 . . . . . 1 . . . . . . 1 . 1 . . . . . . 2 1 . . . . . . . 1 Used 5 | . . . . . . . . . . . . . . 1 . . . . . . . . 2 1 . . . . . . . 1 Hacking Detections 161 | . 6 . . . 8 2 5 19 1 4 2 14 . 12 1 16 . 19 . . . . 16 9 1 . 3 2 12 4 1 4 Full Trace Events 33 | . . . . . . . 1 4 . . 1 4 . 2 . 5 . 6 . . . . 3 1 . . . . 4 2 . . Feedback Events 3 | . . . . . . . . 1 . . . 1 . . . . . 1 . . . . . . . . . . . . . . Corruption 2 | . . . . . . . . 1 . . . . . . . . . 1 . . . . . . . . . . . . . . Hackware Fried 1 | . . . . . . . . . . . . 1 . . . . . . . . . . . . . . . . . . . . Feedback Blocked . | . . . . . . . . . . . . . . . . . . . . . . . . . . . . . . . . . Robot Schematics Acquired . | . . . . . . . . . . . . . . . . . . . . . . . . . . . . . . . . . Robots Built . | . . . . . . . . . . . . . . . . . . . . . . . . . . . . . . . . . Authchips . | . . . . . . . . . . . . . . . . . . . . . . . . . . . . . . . . . Time . | . . . . . . . . . . . . . . . . . . . . . . . . . . . . . . . . . Total Robot Build Rating . | . . . . . . . . . . . . . . . . . . . . . . . . . . . . . . . . . Part Schematics Acquired 14 | . 1 . . . . . . 5 . . . 3 . 1 . . . 2 . . . . . . . . . . 2 . . . Parts Built 26 | . . . . . . . . 8 . . . 2 . 3 . 2 . 3 . . . . 3 . . . . . 5 . . . Authchips . | . . . . . . . . . . . . . . . . . . . . . . . . . . . . . . . . . Time 905 | . . . . . . . . 258 . . . 94 . 96 . 133 . 123 . . . . 81 . . . . . 120 . . . Total Part Build Rating 154 | . . . . . . . . 44 . . . 10 . 18 . 8 . 20 . . . . 20 . . . . . 34 . . . Part Studies Acquired 18 | . . . . . 1 . . 5 . . . . . 1 . 4 . 1 . . . . 1 . . . . . 2 3 . . Parts Repaired 5 | . . . . . 1 . . . . . . 1 . 1 . . . 1 . . . . . 1 . . . . . . . . Time 264 | . . . . . 26 . . . . . . 25 . 62 . . . 62 . . . . . 89 . . . . . . . . Parts Recycled . | . . . . . . . . . . . . . . . . . . . . . . . . . . . . . . . . . Recycled Matter . | . . . . . . . . . . . . . . . . . . . . . . . . . . . . . . . . . Retrieved Matter . | . . . . . . . . . . . . . . . . . . . . . . . . . . . . . . . . . Retrieved Components 27 | . . . . . . . . . . 2 . . . . . 13 . 3 . . . . . . . . . . 6 3 . . Parts Scanalyzed 7 | . . . . . . . . 2 . . . 1 . 1 . . . 2 . . . . . . . . . . 1 . . . Part Schematics Acquired 6 | . . . . . . . . 2 . . . 1 . 1 . . . 1 . . . . . . . . . . 1 . . . Parts Damaged 1 | . . . . . . . . . . . . 1 . . . . . . . . . . . . . . . . . . . . Bothacking | -11 -10 -10 -10 -9 -8 -8 -8 -7 -7 -7 -7 -6 -6 -6 -6 -5 -5 -5 -5 -5 -5 -4 -4 -4 -4 -4 -4 -4 -3 -2 -1 -1 ------------ Run | Yrd Mat Min Exi Min Mat Gar Mat Fac Gar Fac Gar Fac Was Fac Gar Fac Was Fac Upp Upp War Pro Fac Ext Cet Arc Hub Gar Res Res Acc Com Used RIF Installer . | . . . . . . . . . . . . . . . . . . . . . . . . . . . . . . . . . Robots Hacked 1 | . . . . . . . . . . . . . . . . 1 . . . . . . . . . . . . . . . . Non-combat 1 | . . . . . . . . . . . . . . . . 1 . . . . . . . . . . . . . . . . Combat . | . . . . . . . . . . . . . . . . . . . . . . . . . . . . . . . . . Robot Hacks Applied 1 | . . . . . . . . . . . . . . . . 1 . . . . . . . . . . . . . . . . find_chute 1 | . . . . . . . . . . . . . . . . 1 . . . . . . . . . . . . . . . . Relay Couplers Released 98 | . . . . . . 16 . . 22 . 23 . . . 20 . . . . . . . . . . . . 12 2 3 . . Machine Destruction 98 | . . . . . . 16 . . 22 . 23 . . . 20 . . . . . . . . . . . . 12 2 3 . . Fabnet Peak Effective % . | . . . . . . . . . . . . . . . . . . . . . . . . . . . . . . . . . Robots Rewired 31 | . . . . . . . . . . . 3 1 . . 6 . . . . 2 . . . 19 . . . . . . . . Allies Hacked 1 | . . . . . . . . . . . . . . . . . . 1 . . . . . . . . . . . . . . Hacks Repelled . | . . . . . . . . . . . . . . . . . . . . . . . . . . . . . . . . . Allies | -11 -10 -10 -10 -9 -8 -8 -8 -7 -7 -7 -7 -6 -6 -6 -6 -5 -5 -5 -5 -5 -5 -4 -4 -4 -4 -4 -4 -4 -3 -2 -1 -1 -------- Run | Yrd Mat Min Exi Min Mat Gar Mat Fac Gar Fac Gar Fac Was Fac Gar Fac Was Fac Upp Upp War Pro Fac Ext Cet Arc Hub Gar Res Res Acc Com Total Allies 75 | . . 3 . . . . . 2 3 . 3 4 . 2 6 . 19 . . 2 . . 1 28 . . . 1 . . . 1 Largest Group 19 | . . 3 2 2 . . . 2 2 1 3 2 1 2 4 . 19 19 . 2 2 2 3 16 14 2 1 1 . . . 1 Highest-Rated Group 771 | . . 40 32 32 . . . 36 142 62 87 55 26 52 166 . 702 702 . 78 78 78 104 771 568 56 29 46 . . . 45 Highest-Rated Ally 159 | . . 16 16 16 . . . 26 80 62 59 29 26 26 51 . 50 50 . 49 49 49 49 159 51 29 29 46 . . . 45 Initial Warlord ECA Mod 40 | . . . . . . . 6 5 5 16 16 24 24 24 24 34 34 34 34 34 34 33 33 33 33 33 33 33 40 39 38 38 Total Orders 22 | . . . . . . . . . . . 4 . . . 12 . . . . 2 2 . . . . 2 . . . . . . STAY 11 | . . . . . . . . . . . 2 . . . 6 . . . . 1 1 . . . . 1 . . . . . . FOLLOW 11 | . . . . . . . . . . . 2 . . . 6 . . . . 1 1 . . . . 1 . . . . . . Ally Attacks 426 | . . 17 . 4 . . . . 14 2 31 6 . . 29 . . 93 . . . 4 7 166 46 1 5 1 . . . . Total Damage 11588 | . . 203 . 14 . . . . 545 128 676 84 . . 976 . . 2580 . . . 38 292 4686 1179 26 138 23 . . . . Kills 72 | . . 4 . . . . . . 2 1 7 2 . . 4 . . 20 . . . 1 1 23 6 . 1 . . . . . Allies Corrupted 1 | . . . . . . . . . . . 1 . . . . . . . . . . . . . . . . . . . . . Allies Melted 1 | . . . . . . . . . 1 . . . . . . . . . . . . . . . . . . . . . . . Intel | -11 -10 -10 -10 -9 -8 -8 -8 -7 -7 -7 -7 -6 -6 -6 -6 -5 -5 -5 -5 -5 -5 -4 -4 -4 -4 -4 -4 -4 -3 -2 -1 -1 ------- Run | Yrd Mat Min Exi Min Mat Gar Mat Fac Gar Fac Gar Fac Was Fac Gar Fac Was Fac Upp Upp War Pro Fac Ext Cet Arc Hub Gar Res Res Acc Com Active Infowar (turns) 28606 | 20 847 567 308 228 422 . 23 623 1207 252 1229 745 125 1059 1200 1035 392 1585 522 1133 1023 404 1343 1101 206 492 231 1111 1867 1312 290 5704 Optics 25560 | . . . . . . . 23 319 1207 252 1229 745 125 1059 1200 1035 392 1585 522 1133 1023 404 1343 1101 206 492 231 1111 1867 962 290 5704 IFF 2326 | . . . . . . . . . . . . . . . . . . . 522 1133 269 402 . . . . . . . . . . Terrain 3555 | . . . . . . . . 304 . . . . . . . . . . . . . . . . . . . . 7 1310 240 1694 Structural 369 | . . . . . 369 . . . . . . . . . . . . . . . . . . . . . . . . . . . Seismic 2023 | 20 847 567 308 228 53 . . . . . . . . . . . . . . . . . . . . . . . . . . . Machine Analysis 420 | . . . . . . . . . . . . . . . . . . 420 . . . . . . . . . . . . . . ECM 463 | . . . . . . . . . . . . . . . . . . . . . . . 372 . . . . 12 . . . 79 Robot Analysis Total 5 | . 1 . . . 1 . . 2 . . . 1 . . . . . . . . . . . . . . . . . . . . Derelict Logs Recovered 8 | . . 2 . 1 . . . . . . . . . . . . . . 1 2 . 2 . . . . . . . . . . Drone Launches . | . . . . . . . . . . . . . . . . . . . . . . . . . . . . . . . . . Drone Recoveries . | . . . . . . . . . . . . . . . . . . . . . . . . . . . . . . . . . Exploration | -11 -10 -10 -10 -9 -8 -8 -8 -7 -7 -7 -7 -6 -6 -6 -6 -5 -5 -5 -5 -5 -5 -4 -4 -4 -4 -4 -4 -4 -3 -2 -1 -1 ------------- Run | Yrd Mat Min Exi Min Mat Gar Mat Fac Gar Fac Gar Fac Was Fac Gar Fac Was Fac Upp Upp War Pro Fac Ext Cet Arc Hub Gar Res Res Acc Com Turns Passed 31854 | 59 938 577 308 228 1028 1315 558 1017 1207 252 1229 769 125 1059 1200 1035 392 1585 522 1133 1023 404 1343 1101 206 492 231 1111 1867 1312 290 5938 Spaces Moved 45915 | 48 632 482 295 223 677 511 1041 2315 1868 737 1983 1663 288 2127 1703 1869 508 3422 1106 1884 1311 882 2517 1186 204 293 336 1271 3225 2547 423 6338 Core 3 | 3 . . . . . . . . . . . . . . . . . . . . . . . . . . . . . . . . Treads 153 | . . . . . . 153 . . . . . . . . . . . . . . . . . . . . . . . . . . Legs 2447 | . . . . . . 198 . . . . . . . . . . . . . . . . . . . . . . . . . 2249 Wheels 2512 | 45 632 482 295 223 677 158 . . . . . . . . . . . . . . . . . . . . . . . . . . Hover 31408 | . . . . . . . . . . . . 217 288 2127 1703 1869 508 3422 1106 1884 1311 882 2517 1186 204 293 336 1271 3225 2547 423 4089 Flight 9392 | . . . . . . 2 1041 2315 1868 737 1983 1446 . . . . . . . . . . . . . . . . . . . . Fastest Speed 14 | 50 90 95 95 95 85 85 29 23 23 23 23 23 34 34 34 31 31 14 28 28 28 35 15 26 28 28 17 37 36 46 46 39 Average Speed 42 | 88 98 97 95 95 87 177 29 23 23 23 23 26 34 34 34 31 32 31 29 32 34 35 28 28 28 31 27 40 40 46 46 71 Slowest Speed 330 | 100 115 105 95 95 100 330 99 91 23 23 100 94 34 34 88 250 94 84 35 38 83 35 35 36 31 33 37 124 154 48 46 130 Overloaded Moves 311 | . . . . . . . . . . . . . . . . . . 14 . 8 . . 105 . . . 88 1 . . . 95 Propulsion Burnouts . | . . . . . . . . . . . . . . . . . . . . . . . . . . . . . . . . . Robots Hopped 25 | . . . . . . . 7 10 . 2 . 6 . . . . . . . . . . . . . . . . . . . . Potential Cave-ins 4 | . . . . . . . . . . . . . . . . . . . . 2 . . 2 . . . . . . . . . Cave-ins Triggered . | . . . . . . . . . . . . . . . . . . . . . . . . . . . . . . . . . Exploration Rate (%) 71 | 3 87 87 64 59 55 83 50 65 95 23 99 46 95 58 96 42 95 73 93 97 94 90 57 91 72 89 48 82 93 76 9 87 Regions Visited 32 Branch Regions 12 Pre-discovered Areas 5 | . 1 . 1 . . . . . . . . . . . . . . . 1 . . . 2 . . . . . . . . . Known Exits Taken 11 | . . . . . 1 . 1 1 . 1 . . . 1 . . . 1 . 1 . . 1 . . . 1 . 1 1 . . Unknown Exits Taken 12 | 1 1 1 1 1 . . . . . . . . . . . . . . 1 . 1 1 . 1 1 1 . . . . 1 . Scrap Searched 13 | . . 2 . . . . . . . . . . . . . . . . 3 3 . 5 . . . . . . . . . . Spaces Dug 439 | . 1 . . . 6 . 25 16 66 3 36 15 . 14 8 18 . 48 . 10 . . 45 . . . 6 35 32 22 11 22 Terrain Destroyed 1931 | . 1 . . . 27 2 41 51 200 3 165 27 . 19 189 33 . 71 48 51 . 16 94 43 8 36 372 78 93 61 29 173 Melee 139 | . . . . . . . . 14 1 3 14 14 . 14 5 18 . 20 . 7 . . 29 . . . . . . . . . Projectile 328 | . 1 . . . 3 . 8 2 . . . . . . . . . . 1 3 . 1 31 43 8 36 31 5 68 31 11 45 AOE 1447 | . . . . . 24 2 33 35 197 . 145 12 . 5 184 15 . 51 47 41 . 15 34 . . . 341 70 23 30 17 126 Terrain Rammed . | . . . . . . . . . . . . . . . . . . . . . . . . . . . . . . . . . Walls Destroyed . | . . . . . . . . . . . . . . . . . . . . . . . . . . . . . . . . . Machines Disabled . | . . . . . . . . . . . . . . . . . . . . . . . . . . . . . . . . . Actions | -11 -10 -10 -10 -9 -8 -8 -8 -7 -7 -7 -7 -6 -6 -6 -6 -5 -5 -5 -5 -5 -5 -4 -4 -4 -4 -4 -4 -4 -3 -2 -1 -1 --------- Run | Yrd Mat Min Exi Min Mat Gar Mat Fac Gar Fac Gar Fac Was Fac Gar Fac Was Fac Upp Upp War Pro Fac Ext Cet Arc Hub Gar Res Res Acc Com Total 54972 | 58 836 560 324 239 977 690 1206 2636 2368 804 2463 1900 315 2359 2131 2189 682 3787 1270 2297 1860 962 2952 1865 332 601 427 1670 3584 2649 481 7498 Wait 4755 | 2 112 57 23 13 109 25 80 133 285 19 145 99 17 130 194 161 107 205 123 256 460 60 211 461 106 225 52 219 58 6 22 580 Move 45838 | 47 631 481 294 222 677 510 1026 2295 1867 733 1982 1651 287 2127 1702 1869 507 3421 1105 1883 1310 881 2516 1184 203 292 336 1270 3224 2546 422 6337 Hop 25 | . . . . . . . 7 10 . 2 . 6 . . . . . . . . . . . . . . . . . . . . Pick Up 293 | 1 14 4 4 1 19 2 3 11 5 1 5 12 2 6 4 10 1 13 1 8 13 1 9 4 1 3 6 5 21 10 2 91 Fast Attach 366 | 7 1 . . 1 13 9 11 17 1 4 5 21 3 5 4 34 6 11 4 . 11 . 14 5 2 11 1 12 53 18 1 81 Attach 146 | . 3 1 . . 6 7 3 5 . . 3 8 . 1 4 5 . 5 2 3 6 2 6 3 . 2 5 4 9 3 2 48 Detach 50 | . 2 . . . 1 1 . 3 . . . 3 . . 1 4 . 3 1 1 1 . 5 1 . . . 2 3 1 . 17 Swap 341 | . 12 3 . . 16 23 8 10 41 3 27 10 . 9 11 10 5 11 10 5 7 3 6 2 1 . 2 37 16 9 5 39 Drop 497 | . 7 1 3 2 25 3 10 22 11 5 3 33 5 10 3 12 7 14 4 7 22 2 19 8 1 10 1 12 65 30 2 138 Fire 1722 | 1 54 13 . . 111 100 58 40 100 . 108 12 . 41 150 29 49 36 12 82 22 13 105 76 18 57 23 101 109 26 25 151 Melee 406 | . . . . . . . . 45 43 7 55 42 . 30 16 43 . 55 5 12 . . 48 4 . 1 . . . . . . Ram 1 | . . . . . . . . . . . . . . . . . . . . . . . . . . . . . . . . 1 Kick . | . . . . . . . . . . . . . . . . . . . . . . . . . . . . . . . . . Crush . | . . . . . . . . . . . . . . . . . . . . . . . . . . . . . . . . . Escape Stasis 313 | . . . . . . 10 . 45 15 30 118 . . . . 12 . 13 . . . . 13 22 . . . . 26 . . 9 Rewire 183 | . . . . . . . . . . . 12 3 1 . 39 . . . . 35 . . . 87 . . . . . . . 6 Trap 20 | . . . . . . . . . . . . . . . 3 . . . 3 5 . . . . . . 1 8 . . . . Miscellaneous 16 | . . . . . . . . . . . . . . . . . . . . . 8 . . 8 . . . . . . . . Route ------- -11/Scrapyard -10/Materials (discovered 4 exits: [*Mat x2] / [*Min] / [*Sub]) -10/Mines (discovered 2 exits: [*Mat] / *Exi) -10/Exiles -9/Mines -8/Materials (discovered 4 exits: *Fac x3 / Gar) -8/Garrison (discovered 3 exits: *Mat x3) -8/Materials -7/Factory (discovered 5 exits: *Fac / Sto / *Low x2 / Gar) -7/Garrison (discovered 3 exits: *Fac x3) -7/Factory (discovered 3 exits: *Fac / *Low / Gar) -7/Garrison (discovered 3 exits: *Fac x3) -6/Factory (discovered 2 exits: *Low x2) -6/Waste -6/Factory (discovered 5 exits: *Fac x2 / *Low x2 / Gar) -6/Garrison (discovered 3 exits: *Fac x3) -5/Factory (discovered 3 exits: *Fac / *Upp x2) -5/Waste -5/Factory (discovered 3 exits: *Fac / *Upp x2) -5/Upper Caves -5/Upper Caves (discovered 2 exits: *Fac / *War) -5/Warlord -4/Proximity Caves -4/Factory (discovered 7 exits: *Res x3 / Upp x2 / *Ext / *Arm) -4/Extension (discovered 2 exits: *Res / *Cet) -4/Cetus (discovered 2 exits: *Res / [*Arc]) -4/Archives (discovered 3 exits: *Res / *Hub x2) -4/Hub_04(d) (discovered 2 exits: *Res / Gar) -4/Garrison (discovered 3 exits: *Res x3) -3/Research (discovered 5 exits: *Res x3 / *Tes x2) -2/Research (discovered 5 exits: *Acc x3 / [Qua x2]) -1/Access -1/Command (discovered 2 exits: [*Sur x2]) 0b11 Command History --------- Turn | Location | Event 9 | -11/Scrapyard | Discovered new exit (range 15) 60 | -11/Scrapyard | Entered Materials 100 | -10/Materials | Discovered new exit (range 12) 315 | -10/Materials | Build established: Mutant 412 | -10/Materials | Central database locked down 465 | -10/Materials | Discovered new exit (range 11) 589 | -10/Materials | Discovered new exit (range 10) 765 | -10/Materials | Discovered new exit (range 9) 998 | -10/Materials | Entered Mines 1000 | -10/Mines | Assisted by bots powering up and referring to "LRC-V3" 1051 | -10/Mines | Learned Materials terminal intel 1078 | -10/Mines | Learned 4 Materials zone layouts 1137 | -10/Mines | Core integrity fell below 50% 1173 | -10/Mines | Discovered new exit (range 10) 1249 | -10/Mines | Deemed a non-threat by the Exiles lab entrance 1249 | -10/Mines | Discovered new exit (range 5) 1308 | -10/Mines | Received a Rocket Launcher from a helpful Derelict 1404 | -10/Mines | Found a Scrap Suit stashed away for nefarious purposes 1575 | -10/Mines | Entered Exiles 1575 | -10/Exiles | Accompanied by 2 allies 1605 | -10/Exiles | Met 8R-AWN 1620 | -10/Exiles | Met EX-HEX 1656 | -10/Exiles | Met EX-DEC 1677 | -10/Exiles | Met EX-BIN 1694 | -10/Exiles | Learned location of Zion (-7) 1733 | -10/Exiles | Aligned with FarCom system 1734 | -10/Exiles | Given EX-Vault access code 1756 | -10/Exiles | Opened EX-Vault 1763 | -10/Exiles | Found Superbattery 1784 | -10/Exiles | Warned to stay clear of 0b10 Research branches 1849 | -10/Exiles | Discovered new exit (range 14) 1883 | -10/Exiles | Left Exiles lab with Superbattery 1883 | -10/Exiles | Entered Mines 1883 | -9/Mines | Accompanied by 2 allies 1919 | -9/Mines | Learned 2 Materials zone layouts 1966 | -9/Mines | Joined a pair of Derelicts in attacking an 0b10 outpost 2031 | -9/Mines | YI-UF0 nonchalantly dropped a Grenade Launcher on the ground 2043 | -9/Mines | Discovered new exit (range 11) 2057 | -9/Mines | Assembled infested the area 2062 | -9/Mines | Assisted by a Guerilla fighting off Assembled 2111 | -9/Mines | Entered Materials 2111 | -8/Materials | Evolved 4 slots: Propulsion x1, Utility x3 2112 | -8/Materials | Identified exit to Factory 2113 | -8/Materials | Loaded intel: 12 terminal locations 2408 | -8/Materials | Build established: Scavenger-Mutant 2423 | -8/Materials | Discovered exit to Factory (range 6) 2431 | -8/Materials | Destroyed 7 combat bots 2648 | -8/Materials | Repaired Lgt. Armor Plating 3003 | -8/Materials | Discovered exit to Factory (range 22) 3080 | -8/Materials | Garrison activated, responded to threat 3139 | -8/Materials | Identified exit to Garrison 3139 | -8/Materials | Entered Garrison 3159 | -8/Garrison | Triggered checkpoint 3293 | -8/Garrison | Triggered checkpoint 3337 | -8/Garrison | Garrison Relay disabled 3365 | -8/Garrison | Garrison Relay disabled 3428 | -8/Garrison | Triggered checkpoint 3430 | -8/Garrison | Triggered checkpoint 3453 | -8/Garrison | Core integrity fell below 50% 3491 | -8/Garrison | Triggered checkpoint 3494 | -8/Garrison | Lost 5 parts (1p1n3u) 3577 | -8/Garrison | Discovered new exit (range 12) 3665 | -8/Garrison | Triggered checkpoint 3695 | -8/Garrison | Garrison Relay disabled 3857 | -8/Garrison | Discovered new exit (range 8) 4239 | -8/Garrison | Triggered checkpoint 4361 | -8/Garrison | Discovered new exit (range 14) 4399 | -8/Garrison | System corruption reached 10% 4448 | -8/Garrison | Core integrity fell below 20% 4454 | -8/Garrison | Entered Materials 4481 | -8/Materials | Lost 6 parts (1p3n2w) 4545 | -8/Materials | Discovered exit to Factory (range 16) 4746 | -8/Materials | Build established: Sprinter 5012 | -8/Materials | Entered Factory 5012 | -7/Factory | Evolved 2 slots: Propulsion x2 5190 | -7/Factory | Fabricated Lrn. Terrain Scanner (x2) 5295 | -7/Factory | Fabricated Hyp. Gauss Rifle (x2) 5322 | -7/Factory | Identified exit to Storage 5322 | -7/Factory | Identified exit to Lower Caves 5425 | -7/Factory | Fabricated Hyp. Gauss Rifle (x2) 5528 | -7/Factory | Identified exit to Garrison 5574 | -7/Factory | Watched by a mysterious "MATRIX" hacker. 5621 | -7/Factory | Fabricated Hyp. Gauss Rifle (x2) 5715 | -7/Factory | Build established: Hacker-Sprinter 5916 | -7/Factory | Garrison activated, responded to threat 5982 | -7/Factory | Discovered new exit (range 13) 6029 | -7/Factory | Identified exit to Garrison 6029 | -7/Factory | Entered Garrison 6035 | -7/Garrison | Triggered checkpoint 6083 | -7/Garrison | Triggered checkpoint 6116 | -7/Garrison | Garrison Relay disabled 6362 | -7/Garrison | Garrison Relay disabled 6382 | -7/Garrison | Triggered checkpoint 6386 | -7/Garrison | Triggered checkpoint 6408 | -7/Garrison | Discovered new exit (range 12) 6675 | -7/Garrison | Garrison Relay disabled 6681 | -7/Garrison | Discovered new exit (range 18) 6690 | -7/Garrison | Rescued a captive Derelict 6703 | -7/Garrison | H-XX Assembler disabled 6809 | -7/Garrison | Triggered checkpoint 6853 | -7/Garrison | Discovered new exit (range 12) 6857 | -7/Garrison | Triggered checkpoint 6930 | -7/Garrison | Found embedded Infiltrators 6965 | -7/Garrison | Triggered checkpoint 6974 | -7/Garrison | Spotted B-75 Beast 7017 | -7/Garrison | Allies destroyed B-75 Beast 7024 | -7/Garrison | Garrison Relay disabled 7035 | -7/Garrison | Triggered checkpoint 7072 | -7/Garrison | Phase Generator disabled 7236 | -7/Garrison | Entered Factory 7236 | -7/Factory | Accompanied by 1 ally 7269 | -7/Factory | Discovered new exit (range 8) 7399 | -7/Factory | Discovered exit to Lower Caves (range 11) 7475 | -7/Factory | Identified exit to Garrison 7488 | -7/Factory | Entered Garrison 7488 | -7/Garrison | Accompanied by 1 ally 7531 | -7/Garrison | Garrison Relay disabled 7562 | -7/Garrison | Triggered checkpoint 7670 | -7/Garrison | Core integrity fell below 50% 7798 | -7/Garrison | Learned Factory security intel 7799 | -7/Garrison | Discovered new exit (range 12) 7874 | -7/Garrison | Triggered checkpoint 7894 | -7/Garrison | Garrison Relay disabled 7988 | -7/Garrison | Triggered checkpoint 7988 | -7/Garrison | Triggered checkpoint 8007 | -7/Garrison | Triggered checkpoint 8134 | -7/Garrison | Triggered checkpoint 8155 | -7/Garrison | Garrison Relay disabled 8170 | -7/Garrison | Discovered new exit (range 9) 8191 | -7/Garrison | Triggered checkpoint 8337 | -7/Garrison | Garrison Relay disabled 8370 | -7/Garrison | Discovered new exit (range 8) 8397 | -7/Garrison | Garrison Relay disabled 8717 | -7/Garrison | Entered Factory 8717 | -6/Factory | Evolved 2 slots: Utility x2 8862 | -6/Factory | Identified exit to Lower Caves 8862 | -6/Factory | Central database locked down 8893 | -6/Factory | Repaired Hyp. Gauss Rifle 8959 | -6/Factory | Fabricated Imp. Hacking Suite (x1) 9036 | -6/Factory | Garrison activated, responded to threat 9056 | -6/Factory | System Shield fried by hacking feedback 9151 | -6/Factory | Fabricated Imp. Hacking Suite (x1) 9152 | -6/Factory | Spotted B-75 Beast 9486 | -6/Factory | Manually triggered Chute Trap 9486 | -6/Factory | Sucked down chute 9486 | -6/Factory | Entered Waste 9486 | -6/Waste | The area was eerily silent 9501 | -6/Waste | 1 allies followed down the chute 9585 | -6/Waste | Discovered new exit (range 22) 9611 | -6/Waste | Entered Factory 9611 | -6/Factory | Accompanied by 1 ally 9638 | -6/Factory | Build established: Hacker-Mutant 9821 | -6/Factory | Discovered new exit (range 11) 9859 | -6/Factory | Repaired Hyp. Mass Driver? 9928 | -6/Factory | Fabricated Hyp. Mass Driver (x2) 9980 | -6/Factory | Targeted by mysterious "MATRIX" hacker. 10029 | -6/Factory | Central database locked down 10047 | -6/Factory | Fabricated Cld. Airjet (x1) 10404 | -6/Factory | Discovered new exit (range 15) 10437 | -6/Factory | Found Prototype Launcher 10437 | -6/Factory | Identified Scatter Rocket Array 10665 | -6/Factory | Identified exit to Garrison 10670 | -6/Factory | Entered Garrison 10670 | -6/Garrison | Accompanied by 1 ally 10680 | -6/Garrison | Triggered checkpoint 10699 | -6/Garrison | Identified exit to Factory 10702 | -6/Garrison | Garrison Relay disabled 10792 | -6/Garrison | Triggered checkpoint 10902 | -6/Garrison | Phase Generator disabled 11008 | -6/Garrison | Triggered checkpoint 11080 | -6/Garrison | Triggered checkpoint 11121 | -6/Garrison | Destroyed 25 combat bots 11189 | -6/Garrison | Destroyed 7 combat bots 11215 | -6/Garrison | Triggered checkpoint 11242 | -6/Garrison | Garrison Relay disabled 11264 | -6/Garrison | Triggered checkpoint 11329 | -6/Garrison | Triggered checkpoint 11341 | -6/Garrison | Garrison Relay disabled 11424 | -6/Garrison | Garrison Relay disabled 11575 | -6/Garrison | Triggered checkpoint 11615 | -6/Garrison | Garrison Relay disabled 11617 | -6/Garrison | Spotted B-75 Beast 11623 | -6/Garrison | Lost 3 allies 11633 | -6/Garrison | Spotted B-90 Cyclops 11870 | -6/Garrison | Entered Factory 11870 | -5/Factory | Evolved 2 slots: Propulsion x1, Utility x1 12170 | -5/Factory | First assault squad dispatched 12182 | -5/Factory | Build established: Hacker-Sprinter 12252 | -5/Factory | Discovered new exit (range 13) 12529 | -5/Factory | Identified exit to Upper Caves 12533 | -5/Factory | Fabricated Cld. Airjet? 12598 | -5/Factory | Fabricated Cld. Airjet (x1) 12905 | -5/Factory | Sucked down chute 12905 | -5/Factory | Entered Waste 12908 | -5/Waste | Spotted C-40 Crusher 12911 | -5/Waste | Destroyed C-40 Crusher 12918 | -5/Waste | Found Prototype Device 12918 | -5/Waste | Identified System Purifier 12927 | -5/Waste | Spotted C-40 Crusher 12927 | -5/Waste | Found Prototype Device 12927 | -5/Waste | Identified Adv. EM Shield 12928 | -5/Waste | Spotted C-40 Crusher 12929 | -5/Waste | Spotted C-40 Crusher 12977 | -5/Waste | Destroyed C-40 Crusher 12979 | -5/Waste | Destroyed C-40 Crusher 13001 | -5/Waste | Destroyed C-40 Crusher 13002 | -5/Waste | Spotted C-40 Crusher 13015 | -5/Waste | Destroyed C-40 Crusher 13031 | -5/Waste | Spotted C-40 Crusher 13054 | -5/Waste | Destroyed C-40 Crusher 13070 | -5/Waste | Discovered new exit (range 21) 13076 | -5/Waste | Warlord forces began an assault 13297 | -5/Waste | Entered Factory 13297 | -5/Factory | Accompanied by 19 allies 13432 | -5/Factory | Build established: Hacker-Mutant 13591 | -5/Factory | Lost 4 allies 13614 | -5/Factory | Discovered new exit (range 18) 13750 | -5/Factory | Build established: Hacker-Scout 13812 | -5/Factory | Spotted B-75 Beast 14010 | -5/Factory | Fabricated Adv. Reaction Control System? 14148 | -5/Factory | Build established: Hacker-Sprinter 14278 | -5/Factory | Fabricated Tri-rail Accelerator? 14797 | -5/Factory | First assault squad dispatched 14865 | -5/Factory | Repaired Hyp. Mass Driver+ 14882 | -5/Factory | Entered Upper Caves 14896 | -5/Upper Caves | Attracted the attention of an 0b10 checkpoint 14902 | -5/Upper Caves | Met a Warlord Commander 14903 | -5/Upper Caves | Learned location of Warlord (-5) 14904 | -5/Upper Caves | Warlord Commander delivered Encrypted Comm Array 14904 | -5/Upper Caves | Found Encrypted Comm Array 15142 | -5/Upper Caves | Learned 12 Factory zone layouts 15367 | -5/Upper Caves | Discovered new exit (range 15) 15404 | -5/Upper Caves | Entered another Upper Caves area 15446 | -5/Upper Caves | Discovered new exit (range 5) 15478 | -5/Upper Caves | Encountered a Warlord checkpoint 15629 | -5/Upper Caves | Build established: Trapper-Sprinter 15633 | -5/Upper Caves | Attracted the attention of an 0b10 checkpoint 15731 | -5/Upper Caves | Identified exit to Warlord 15907 | -5/Upper Caves | Attracted the attention of an 0b10 outpost 16061 | -5/Upper Caves | Spotted B-75 Beast 16537 | -5/Upper Caves | Entered Warlord 16537 | -5/Warlord | Accompanied by 2 allies 16683 | -5/Warlord | Met Warlord 16708 | -5/Warlord | Warlord's base attacked by MAIN.C 16716 | -5/Warlord | Found Prototype Energy Cannon 16716 | -5/Warlord | Identified Vortex Driver 16806 | -5/Warlord | Found Prototype Processor 16806 | -5/Warlord | Identified Exp. Target Analyzer 16814 | -5/Warlord | Found Prototype Hackware 16954 | -5/Warlord | Spotted B-75 Beast 16954 | -5/Warlord | Spotted B-86 Titan 16973 | -5/Warlord | Warlord forces counterattacked 17001 | -5/Warlord | Lost 8 allies 17037 | -5/Warlord | Spotted Striker 17084 | -5/Warlord | Found Prototype Device 17084 | -5/Warlord | Identified Adv. Kinecellerator 17090 | -5/Warlord | Discovered new exit (range 17) 17098 | -5/Warlord | Lost 12 allies 17171 | -5/Warlord | Lost 5 allies 17221 | -5/Warlord | Spotted Executioner 17275 | -5/Warlord | Lost 11 allies 17285 | -5/Warlord | Build established: Trapper-Mutant 17378 | -5/Warlord | Spotted Executioner 17383 | -5/Warlord | Warlord base infiltrated, sounded retreat 17384 | -5/Warlord | Destroyed Executioner 17412 | -5/Warlord | Found Adv. Kinecellerator 17550 | -5/Warlord | Lost 4 allies 17560 | -5/Warlord | Entered Proximity Caves 17560 | -4/Proximity Caves | Accompanied by 2 allies 17632 | -4/Proximity Caves | Learned location of 1 exit from Research 17753 | -4/Proximity Caves | Discovered new exit (range 15) 17794 | -4/Proximity Caves | Learned location of 1 exit from Research 17964 | -4/Proximity Caves | Entered Factory 17964 | -4/Factory | Accompanied by 2 allies 17964 | -4/Factory | Evolved 2 slots: Power x1, Propulsion x1 17965 | -4/Factory | Identified exit to Research 17967 | -4/Factory | Identified System Mapper 18002 | -4/Factory | Identified exit to Upper Caves 18002 | -4/Factory | Identified exit to Extension 18002 | -4/Factory | Identified exit to Armory 18133 | -4/Factory | Fabricated Hyp. Mass Driver (x2) 18294 | -4/Factory | Discovered exit to Research (range 8) 18327 | -4/Factory | Unchained authorized (GL-D0S) 18373 | -4/Factory | Central database locked down 18378 | -4/Factory | Fabricated Tri-rail Accelerator? 18414 | -4/Factory | Found Prototype Launcher 18414 | -4/Factory | Identified Com. Tesla Bomb Launcher 18434 | -4/Factory | Learned Quarantine terminal intel 18438 | -4/Factory | Spotted B-86 Titan 18532 | -4/Factory | Learned location of Armory (-4) 18567 | -4/Factory | Build established: Hacker-Sprinter 18568 | -4/Factory | Learned 4 Proximity Caves zone layouts 18593 | -4/Factory | Learned 2 Armory zone layouts 18636 | -4/Factory | Learned 4 Research zone layouts 18666 | -4/Factory | Learned 2 Upper Caves zone layouts 18744 | -4/Factory | Spotted Striker 18745 | -4/Factory | Cargo convoy interrupted 18750 | -4/Factory | Learned Armory terminal intel 18805 | -4/Factory | Spotted B-86 Titan 19021 | -4/Factory | Destroyed 9 combat bots 19057 | -4/Factory | Found Prototype Launcher 19064 | -4/Factory | Found Prototype Device 19064 | -4/Factory | Identified Exp. Actuator Array 19067 | -4/Factory | System corruption reached 10% 19259 | -4/Factory | Identified Hellfire Missile Launcher 19307 | -4/Factory | Entered Extension 19381 | -4/Extension | Rescued A7 19439 | -4/Extension | Rescued a captive Derelict 19440 | -4/Extension | Rescued a captive Derelict 19444 | -4/Extension | Rescued a captive Derelict 19447 | -4/Extension | Rescued a captive Derelict 19818 | -4/Extension | Spotted B-86 Titan 19829 | -4/Extension | Destroyed B-86 Titan 19833 | -4/Extension | Spotted B-86 Titan 19851 | -4/Extension | Destroyed B-86 Titan 19879 | -4/Extension | Rescued a captive Derelict 19879 | -4/Extension | Rescued a captive Derelict 19958 | -4/Extension | Rescued a captive Derelict 19961 | -4/Extension | Rescued a captive Derelict 20073 | -4/Extension | Lost 7 allies 20253 | -4/Extension | Repaired Tri-rail Accelerator 20283 | -4/Extension | Discovered exit to Research (range 10) 20284 | -4/Extension | Discovered new exit (range 6) 20307 | -4/Extension | First assault squad dispatched 20324 | -4/Extension | Disrupted transfer network 20361 | -4/Extension | Extracted ID and sensor layout for unrecognized location from A7's data core 20377 | -4/Extension | Destroyed 8 combat bots 20408 | -4/Extension | Entered Cetus 20408 | -4/Cetus | Accompanied by 14 allies 20427 | -4/Cetus | Spotted Cetus Guard 20427 | -4/Cetus | Spotted Cetus Guard 20430 | -4/Cetus | Spotted Cetus Guard 20431 | -4/Cetus | Spotted Cetus Guard 20435 | -4/Cetus | Allies destroyed Cetus Guard 20438 | -4/Cetus | Allies destroyed Cetus Guard 20456 | -4/Cetus | Destroyed Cetus Guard 20460 | -4/Cetus | Allies destroyed Cetus Guard 20481 | -4/Cetus | Lost 8 allies 20484 | -4/Cetus | Discovered new exit (range 22) 20496 | -4/Cetus | Spotted Cetus Guard 20497 | -4/Cetus | Spotted Cetus Guard 20542 | -4/Cetus | Spotted Cetus Guard 20544 | -4/Cetus | Destroyed Cetus Guard 20546 | -4/Cetus | Spotted Cetus Guard 20548 | -4/Cetus | Allies destroyed Cetus Guard 20558 | -4/Cetus | Destroyed Cetus Guard 20571 | -4/Cetus | Allies destroyed Cetus Guard 20580 | -4/Cetus | Discovered exit to Research (range 21) 20583 | -4/Cetus | Lost 4 allies 20584 | -4/Cetus | Met Revision 17 20614 | -4/Cetus | Entered Archives 20614 | -4/Archives | Accompanied by 2 allies 20663 | -4/Archives | Discovered new exit (range 22) 20681 | -4/Archives | Discovered new exit (range 22) 20754 | -4/Archives | Discovered exit to Research (range 16) 20918 | -4/Archives | Build established: Scavenger-Sprinter 21106 | -4/Archives | Entered Hub_04(d) 21106 | -4/Hub_04(d) | Accompanied by 1 ally 21248 | -4/Hub_04(d) | Network Hub disabled 21267 | -4/Hub_04(d) | Discovered exit to Research (range 8) 21272 | -4/Hub_04(d) | Spotted Lightning 21272 | -4/Hub_04(d) | Spotted Lightning 21277 | -4/Hub_04(d) | Network Hub disabled 21286 | -4/Hub_04(d) | Spotted B-86 Titan 21286 | -4/Hub_04(d) | Spotted Lightning 21286 | -4/Hub_04(d) | Spotted Lightning 21288 | -4/Hub_04(d) | Spotted Lightning 21292 | -4/Hub_04(d) | Network Hub disabled 21327 | -4/Hub_04(d) | Lost 8 parts (2p4n2u) 21337 | -4/Hub_04(d) | Identified exit to Garrison 21337 | -4/Hub_04(d) | Entered Garrison 21364 | -4/Garrison | Triggered checkpoint 21421 | -4/Garrison | Spotted B-86 Titan 21476 | -4/Garrison | Destroyed B-86 Titan 21494 | -4/Garrison | Triggered checkpoint 21776 | -4/Garrison | Triggered checkpoint 21818 | -4/Garrison | Triggered checkpoint 21839 | -4/Garrison | Discovered exit to Research (range 51) 21839 | -4/Garrison | Discovered exit to Research (range 39) 21839 | -4/Garrison | Discovered exit to Research (range 45) 21861 | -4/Garrison | Garrison Relay disabled 21918 | -4/Garrison | Garrison Relay disabled 22044 | -4/Garrison | Build established: Scavenger-Mutant 22069 | -4/Garrison | Rescued a captive Derelict 22111 | -4/Garrison | Triggered checkpoint 22126 | -4/Garrison | Garrison Relay disabled 22329 | -4/Garrison | Triggered checkpoint 22364 | -4/Garrison | Garrison Relay disabled 22397 | -4/Garrison | Learned Research security intel 22397 | -4/Garrison | Discovered exit to Research (range 51) 22397 | -4/Garrison | Discovered exit to Research (range 39) 22397 | -4/Garrison | Discovered exit to Research (range 45) 22448 | -4/Garrison | Entered Research 22448 | -3/Research | Evolved 2 slots: Utility x1, Weapon x1 22449 | -3/Research | Identified exit to Research 22450 | -3/Research | Identified exit to Testing 22605 | -3/Research | Found Prototype Device 22605 | -3/Research | Identified Exp. Thermal Shield 22613 | -3/Research | Found Prototype Protection 22613 | -3/Research | Identified Centrium Heavy Armor Plating 22635 | -3/Research | Fabricated Hyp. Mass Driver (x2) 22648 | -3/Research | Revision forces began assault on 0b10 22762 | -3/Research | Destroyed 13 combat bots 22768 | -3/Research | Lost 7 parts (1p4n2w) 22771 | -3/Research | Met up with Revision 17++ 22929 | -3/Research | Fabricated Hyp. Mass Driver? 23070 | -3/Research | Build established: Scavenger-Gunner 23148 | -3/Research | Research terminal network offline 23192 | -3/Research | Discovered exit to Research (range 6) 23207 | -3/Research | Found Centrium Heavy Armor Plating 23230 | -3/Research | Spotted Striker 23242 | -3/Research | Fabricated Tri-rail Accelerator (x1) 23286 | -3/Research | Central database locked down 23325 | -3/Research | Found Prototype Processor 23325 | -3/Research | Identified Exp. Melee Analysis Suite 23498 | -3/Research | Found Unknown Protection 23498 | -3/Research | Identified Adv. Powered Armor 23510 | -3/Research | Found Prototype Processor 23510 | -3/Research | Identified Exp. Terrain Scan Processor 23528 | -3/Research | Discovered exit to Testing (range 15) 23589 | -3/Research | Spotted Striker 23875 | -3/Research | Spotted Striker 23944 | -3/Research | Spotted Striker 24013 | -3/Research | Build established: Hacker-Gunner 24079 | -3/Research | Spotted Striker 24245 | -3/Research | Spotted Striker 24245 | -3/Research | Spotted Executioner 24263 | -3/Research | Spotted Striker 24284 | -3/Research | Destroyed Striker 24305 | -3/Research | Found Prototype Processor 24305 | -3/Research | Identified Exp. Core Analyzer 24315 | -3/Research | Entered another Research area 24315 | -2/Research | Warlord forces began assault on 0b10 24315 | -2/Research | Evolved 2 slots: Utility x2 24340 | -2/Research | Distinguished unit "The Professionals" dispatched to help 24340 | -2/Research | Distinguished unit "Lair Dwellers" dispatched to help 24425 | -2/Research | Research machine network offline 24473 | -2/Research | Spotted B-90 Cyclops 24574 | -2/Research | Discovered new exit (range 20) 24578 | -2/Research | Spotted Striker 24600 | -2/Research | Discovered new exit (range 20) 24602 | -2/Research | Build established: Hacker-Scout 24612 | -2/Research | Lost 4 allies 24644 | -2/Research | Found Prototype Hackware 24644 | -2/Research | Identified Exp. System Shield 24733 | -2/Research | Spotted Striker 24773 | -2/Research | Spotted Executioner 24787 | -2/Research | Borebot progress halted 24789 | -2/Research | Lost 3 allies 24794 | -2/Research | Met up with Warlord 24845 | -2/Research | Found Adv. Kinecellerator 24848 | -2/Research | Found Exp. Targeting Computer 24863 | -2/Research | Discovered new exit (range 18) 24921 | -2/Research | Spotted Striker 24954 | -2/Research | Found Centrium Heavy Armor Plating 25048 | -2/Research | Discovered new exit (range 17) 25196 | -2/Research | Discovered new exit (range 13) 25203 | -2/Research | Identified exit to Access 25344 | -2/Research | Spotted Executioner 25350 | -2/Research | Borebot progress halted 25357 | -2/Research | Spotted Striker 25492 | -2/Research | Spotted Executioner 25503 | -2/Research | Build established: Scavenger-Scout 25562 | -2/Research | Warlord invited to help at Command 25562 | -2/Research | Given Cave Seal Controls access code 25627 | -2/Research | Entered Access 25627 | -1/Access | Evolved 2 slots: Utility x2 25740 | -1/Access | Energy Cycler disabled 25743 | -1/Access | Spotted B-99 Colossus 25802 | -1/Access | Discovered new exit (range 16) 25851 | -1/Access | Unchained authorized (DW-4LL) 25917 | -1/Access | Entered Command 25939 | -1/Command | Phase Generator disabled 26076 | -1/Command | Build established: Hacker-Scout 26309 | -1/Command | Destroyed 10 combat bots 26407 | -1/Command | Spotted M Guard 26407 | -1/Command | Spotted M Guard 26407 | -1/Command | Spotted Combat Programmer 26413 | -1/Command | Spotted Combat Programmer 26445 | -1/Command | System corruption reached 10% 26470 | -1/Command | Destroyed Combat Programmer 26491 | -1/Command | Destroyed Combat Programmer 26496 | -1/Command | Lost 4 parts (2p2w) 26600 | -1/Command | Found Prototype Launcher 26600 | -1/Command | Identified Gui. Micro-nuke Launcher 26660 | -1/Command | Build established: Scavenger-Scout 26667 | -1/Command | First assault squad dispatched 26838 | -1/Command | System corruption reached 30% 26867 | -1/Command | Lost 3 parts (1p1n1w) 26927 | -1/Command | Lost 4 parts (1p1n2u) 27014 | -1/Command | Core integrity fell below 50% 27038 | -1/Command | Disengaged cave seal 27038 | -1/Command | Derelicts emerged from the dark tunnel 27038 | -1/Command | Welcomed Warlord to Command 27089 | -1/Command | Lost 11 parts (1p4n3u3w) 27209 | -1/Command | Destroyed M Guard 27209 | -1/Command | All MAIN.C guards destroyed 27286 | -1/Command | Met MAIN.C 27286 | -1/Command | 0b10 Conduit disabled 27295 | -1/Command | Warlord shut down involuntarily 27317 | -1/Command | MAIN.C activated Command garrisons 27334 | -1/Command | Discovered new exit (range 30) 27334 | -1/Command | Discovered new exit (range 104) 27334 | -1/Command | Extracted map data and part IDs from MAIN.C's data core 27348 | -1/Command | Build established: Scavenger-Gunner 27421 | -1/Command | Found Exp. System Purifier 27715 | -1/Command | Build established: Scavenger-Mutant 28204 | -1/Command | Found Adv. Kinecellerator 28208 | -1/Command | Found Multirail 28220 | -1/Command | Found Exp. Targeting Computer 28226 | -1/Command | Found Exp. Core Analyzer 28611 | -1/Command | Found Exp. Terrain Scanner 28719 | -1/Command | Found Zero-point Reactor 28730 | -1/Command | Found Adv. Particle Accelerator 28733 | -1/Command | Found Thermal Barrier 29035 | -1/Command | Build established: Scavenger-Gunner 29916 | -1/Command | Found Centrium Heavy Armor Plating 30212 | -1/Command | Found Omega Cannon 30222 | -1/Command | Found Adv. Kinecellerator 30239 | -1/Command | Found Centrium Heavy Armor Plating 30559 | -1/Command | Found Zero-point Reactor 31855 | *** | Establishing 0b11! Last Messages --------------- 31094_ Dropped Hvy. Hardcell Cannon. 31124_ Acquired 60 matter. 31385_ Acquired Cmb. Linear Gravjet+. 31423_ Acquired 20 matter. 31613_ Discarded Exp. Optical Array. 31614_ Acquired Adv. Quantum Shading Machine. 31615_ Acquired 10 matter. 31623_ Dropped Adv. Phase Shifter. 31623_ Dropped Adv. Kinecellerator. 31624_ Acquired Adv. Phase Shifter. 31679_ Acquired Corrupted Power Amplifier. 31724_ Acquired Adv. Kinecellerator. 31759_ Acquired Omega Cannon. 31787_ Dropped Corrupted Power Amplifier. 31790_ Dropped Adv. Quantum Shading Machine. 31793_ Acquired 1 matter. 31793_ Acquired Adv. Quantum Shading Machine. 31795_ Acquired 19 matter. 31847_ Acquired Exp. Optical Array. [Achievement: Commander 0b11] Map ----- +----------------------------------------------------+ | + ## ###???????????????????????????? | | ## !## #?????????????????????????????? | | ## ##! "" #?????????????????????????????? | | ## ## """ ###???????#???????????????????? | | ##########! T" "#???????????????????????????? | | ^ # """ ""#?????????#?????????????????? | | ^ ^^ # "" ""#??#?#??????????????????????? | | # ""#???????#?????????#?????????? | | # ! ""#???????????????#???????????? | | # T"#??????????#??????#?????????? | | # ""#?????????????????#?????????? | | + ""##???????#???#??????#???????? | | ####### # ""#??????#????????????????????? | | ###### ""#?#?????????????????????????? | | #????# "#?????#?????????????????????? | | #??#?# = ###??#?????????#????#?????????? | | #????# #????#????????????????????????? | | #????#########?#?#??????????#??????????????? | | #?#?#??????################????????????????? | | #???#??? ??#####;##########???#????????????? | | #?########### % ##??#?????????????? | | #######;%;;## ##????????????????? | | #?### #%!*; %% ^ ^^^ ^ ###???????????????? | | ####+####^^^^%^^ ^^ ^ ##????????????????? | | ## + ^^^^^^^ ^ ^ ##?????############ | | ?# * = ! ^^^%^^ ^ "@ ^ ##?????# + | | ## =![!+ ] ^^ ^ "" ^ ##??#??# ## | | =[[!+ ^^^^ ^ ##?????# """"#? | | =!### ^^ %^%%^^ %^ ^ ##?????#= """"#? | | #?###%#%#!;%;[ ^^^^^^^^ ##?????# """"#? | | #?#####"##;!!%= ! o ##?????# """"#? | | #?########### %% ####???# #? | | % #??????????################?????# ## | | ######?#???????#####################?#+####+#### | | #????????????#?????????### # #?# #??# | | #??#????########???#?### ### # ### #??# | | ########## #????##" # ## =# #??# | | # # = #????#" ] # " #??# ^ "" | | # # #?????# % ! # #### "" | | # "" # #????## = # ! / ^ T" | | """ # ##???#" [= # # #### "" | | # "T + ######" =%[ # ## ###+##?# "" | | """ # # + |!! #??# | | % "" # # # ] # = #### ^ | | /# !=! #= + +=%* # #??#^ | | # %|%%! [ # # = "" + #?## | | # ##[*# # # # """" #### | | !!#### # """" #### | | %#### # "" + | | #### + ########## | +----------------------------------------------------+ Best States ------------- Heat Dissipation 180 Coolant Potential 120 Energy Generation 61 Energy Capacity 1690 Matter Stores 300 Matter Capacity 300 Sight Range 23 Terrain Scan Range 30 Terrain Scan Density 1010 ECM Strength 2 Additional Mass Support 25 Corruption Block 20 Armor Coverage 600 Resistance: TH 10 Resistance: EM 50 Utility Shielding 66 Weapon Cycling 25 Phase Shifting 15 Evasion (%) 86 Targeting Accuracy 24 Melee Accuracy 8 Target Analysis 12 Core Analysis 8 Armor Integrity Analysis 30 Recoil Reduction 3 Matter Filtering 50 Particle Charging 50 Kinecelleration 50 Offensive Hacking 48 Defensive Hacking 14 Authchip Count 1 Trap Extractor Capacity 8 Item Schematics ----------------- Hcp. Storage Unit | -10/Materials | Hacked Hacking Suite | -7/Factory | Hacked Adv. System Restoration Module | -7/Factory | Hacked Hyp. Gauss Rifle | -7/Factory | Hacked Imp. Utility Shielding | -7/Factory | Scanalyzed Imp. Airjet | -7/Factory | Scanalyzed Imp. Hacking Suite | -6/Factory | Hacked Cld. Airjet | -6/Factory | Scanalyzed Imp. Linear Gravjet | -6/Factory | Hacked Hyp. Mass Driver | -6/Factory | Scanalyzed Tri-rail Accelerator | -5/Factory | Hacked Weapon Mount | -5/Factory | Scanalyzed Centrium Heavy Armor Plating | -3/Research | Scanalyzed Enh. Flexi-carbon Leg | -3/Research | Extracted Robot Schematics ------------------ None Fabricated ------------ Lrn. Terrain Scanner | x2 | -7/Factory | Preloaded Hyp. Gauss Rifle | x2 | -7/Factory Hyp. Gauss Rifle | x2 | -7/Factory Hyp. Gauss Rifle | x2 | -7/Factory Imp. Hacking Suite | x1 | -6/Factory Imp. Hacking Suite | x1 | -6/Factory Hyp. Mass Driver | x2 | -6/Factory Cld. Airjet | x1 | -6/Factory Cld. Airjet | x1 | -5/Factory Cld. Airjet | x1 | -5/Factory Adv. Reaction Control System | x2 | -5/Factory | Preloaded Tri-rail Accelerator | x1 | -5/Factory Hyp. Mass Driver | x2 | -4/Factory Tri-rail Accelerator | x1 | -4/Factory Hyp. Mass Driver | x2 | -3/Research Hyp. Mass Driver | x2 | -3/Research Tri-rail Accelerator | x1 | -3/Research Repaired ---------- Lgt. Armor Plating | 8% | -8/Materials Hyp. Gauss Rifle | 11% | -6/Factory Hyp. Mass Driver | 4% | -6/Factory Hyp. Mass Driver | 4% | -5/Factory Tri-rail Accelerator | 4% | -4/Extension Studied --------- Wheel | -8/Materials | Hacked Imp. Grenade Launcher | -7/Factory | Hacked Mace | -7/Factory | Hacked Gatling Laser | -7/Factory | Hacked Mic. Nuclear Core | -7/Factory | Hacked Hvy. Missile Launcher | -7/Factory | Hacked Lgt. Fission Core | -6/Factory | Hacked Gravmag System | -5/Factory | Hacked Antigrav System | -5/Factory | Hacked Linear Gravjet | -5/Factory | Hacked Cmb. Airjet | -5/Factory | Hacked Hyp. Mass Driver | -5/Factory | Hacked Cmb. Gravmag System | -4/Factory | Hacked Hyp. Railgun | -3/Research | Hacked Hyp. Coil Gun | -3/Research | Hacked Antigrav Array | -2/Research | Hacked Cmb. Linear Gravjet | -2/Research | Hacked Cmb. Antigrav System | -2/Research | Hacked Alien Tech Used ----------------- None Achievements -------------- Commander 0b11 Challenges ------------ None Game ------ Seed KineticMolecularSpiker Manual? 0 Play Time 09:21:29 Cumulative 661.0 hours Start 2026.04.01 @ 16:46:07 End 2026.04.02 @ 21:45:36 Sessions 5 Manual Loads 0 Difficulty Rogue Special Mode None Game No. 209 Rogue 209 Adventurer 0 Explorer 0 Win Type 1 Total 26 Types 10/2/7/1/1/0/1/1/1/2 Lore% 93 Gallery% 86 Achievement% 80 Wizard Run 0 Options --------- Layout 1 ASCII 0 Keyboard 0 Movement Mouse Keybinds 0 Fullscreen 2 Font 32/SmallcapsGlow Map View 50x35 Zoom Use 0% Tactical HUD 1 Map Filters NONE Filters NONE Steam 1 RUN: ce7ad872-869c-4966-a218-fefaaa24b5ad